Workbook

Sheet Resumo postos
A6: RESUMO - PLANILHA DE CUSTOS E FORMAÇÃO DE PREÇOS
A7: Categoria | B7: Subitem | C7: Tipo de serviço (A) | D7: Jornada de trabalho | E7: Valor Estimado por empregado (B) | F7: Qtde de empregados por posto(C ) | G7: Valor Estimado por posto (D) = (B x C)* | H7: Qtde de postos (E) | I7: Valor total do serviço mensal (F) = (D x E) | J7: Valor total do serviço p/12 meses: (G) = (Fx12) | K7: Salário
A8: RECEPCIONISTA | B8: Recepcionista | C8: Atendente (CBO Vinculado 4221-05). | D8: 8hs/dia | E8: =Recepcionista!G141 -> 4141.47 | F8: 1 | G8: =E8*F8 -> 4141.47 | H8: 1 | I8: =G8*H8 -> 4141.47 | J8: =I8*12 -> 49697.64 | K8: =Recepcionista!G30 -> 1424.79
A9: Total Recepcionista | I9: =SUM(I8) -> 4141.47 | J9: =SUM(J8) -> 49697.64
A11: ASSISTENTE ADMINISTRATIVO | B11: Auxiliar Administrativo | C11: Assistente Administrativo (CBO Vinculado 4110-10). | D11: 8hs/dia | E11: ='Aux. Adm.'!G141 -> 3880.22 | F11: 1 | G11: =E11*F11 -> 3880.22 | H11: 3 | I11: =G11*H11 -> 11640.66 | J11: =I11*12 -> 139687.92 | K11: ='Aux. Adm.'!G30 -> 1328.3
B12: Administrativo - Nível I | C12: Assistente Administrativo (CBO Vinculado 4110-10). | D12: 8hs/dia | E12: ='Ass. Adm. I'!G141 -> 5552.03 | F12: 1 | G12: =E12*F12 -> 5552.03 | H12: 2 | I12: =G12*H12 -> 11104.06 | J12: =I12*12 -> 133248.72 | K12: ='Ass. Adm. I'!G39 -> 2127.02
A13: Total Assistente Administrativo | I13: =SUM(I11:I12) -> 22744.72 | J13: =SUM(J11:J12) -> 272936.64
A15: GABINETE | B15: Analista Sênior | C15: Assistente Administrativo (CBO Vinculado 4110-10). | D15: 8hs/dia | E15: =Analista!G141 -> 17528.34 | F15: 1 | G15: =E15*F15 -> 17528.34 | H15: 1 | I15: =G15*H15 -> 17528.34 | J15: =I15*12 -> 210340.08
A16: Total Assistente de Gabinete | I16: =SUM(I15:I15) -> 17528.34 | J16: =SUM(J15:J15) -> 210340.08
A18: SUPERINTENDÊNCIA | B18: Auxiliar Administrativo | C18: Assistente Administrativo (CBO Vinculado 4110-10). | D18: 8hs/dia | E18: ='Aux. Adm.'!G141 -> 3880.22 | F18: 1 | G18: =E18*F18 -> 3880.22 | H18: 1 | I18: =G18*H18 -> 3880.22 | J18: =I18*12 -> 46562.64 | K18: ='Ass. Adm. I'!G39 -> 2127.02
B19: Analista Sênior | C19: Assistente Administrativo (CBO Vinculado 4110-10). | D19: 8hs/dia | E19: =Analista!G141 -> 17528.34 | F19: 1 | G19: =E19*F19 -> 17528.34 | H19: 2 | I19: =G19*H19 -> 35056.68 | J19: =I19*12 -> 420680.16 | K19: =Analista!G30 -> 7134.75
A20: Total Assistente Superintendência | I20: =SUM(I18:I19) -> 38936.9 | J20: =SUM(J18:J19) -> 467242.8
A22: ASSISTENTE DE COMUNICAÇÃO | B22: Assistente de Comunicação | C22: Assistente Editorial (CBO Vinculado 2611-25). | D22: 6hs/dia | E22: ='Ass. Com'!G141 -> 9400.06 | F22: 1 | G22: =E22*F22 -> 9400.06 | H22: 1 | I22: =G22*H22 -> 9400.06 | J22: =I22*12 -> 112800.72 | K22: ='Ass. Com'!G30 -> 3754.25
A23: Total Assistente de Comunicação | I23: =SUM(I22:I22) -> 9400.06 | J23: =SUM(J22:J22) -> 112800.72
A25: ASSISTENTE DE CONDUÇÃO | B25: Assistente de Condução | C25: Assistente de Condução (CBO Vinculado 3421-25). | D25: 8hs/dia | E25: ='Assist. Condução'!G141 -> 6822.04 | F25: 1 | G25: =E25*F25 -> 6822.04 | H25: 2 | I25: =G25*H25 -> 13644.08 | J25: =I25*12 -> 163728.96 | K25: ='Assist. Condução'!G38 -> 2658.79
A26: Total Assistente de Condução | I26: =SUM(I25:I25) -> 13644.08 | J26: =SUM(J25:J25) -> 163728.96
A28: DIÁRIAS - ASSISTENTE DE CONDUÇÃO | B28: Assistente de Condução | C28: Despesas com Viagens | D28: 10diárias/mês | E28: ='Despesas com Viagens - Diárias'!E15 -> 1820.35 | F28: 1 | G28: =E28*F28 -> 1820.35 | H28: 1 | I28: =G28*H28 -> 1820.35 | J28: =I28*12 -> 21844.2 | K28: ='Assist. Condução'!G30 -> 2658.79
A29: Total Diárias - Assistente de Condução | I29: =SUM(I28:I28) -> 1820.35 | J29: =SUM(J28:J28) -> 21844.2
A31: H. EXTRA - ASSISTENTE DE CONDUÇÃO | B31: Assistente de Condução | C31: Hora extra a 50% | D31: 30h/mês | E31: ='Assist. Condução - Hora Extra'!G141*30 -> 1307.7 | F31: 1 | G31: =E31*F31 -> 1307.7 | H31: 1 | I31: =G31*H31 -> 1307.7 | J31: =I31*12 -> 15692.4
A32: Total Horas Extras a 50% - Assistente de Condução | I32: =SUM(I31:I31) -> 1307.7 | J32: =SUM(J31:J31) -> 15692.4
C35: Valor Total Mensal dos Serviços | I35: =I9+I13+I16+I20+I23+I26+I29+I32 -> 109523.62
C37: Valor Global para 12 meses | J37: =J9+J13+J16+J20+J23+J26+J29+J32 -> 1314283.44 | K37: 1170380.28 | L37: =J37-K37 -> 143903.16
J40: =I35*12 -> 1314283.44

Sheet Planilha
B2: Processo nº 59530.001128/2023-40
B3: Objeto: CONTRATAÇÃO DE EMPRESA NA PRESTAÇÃO, DE FORMA CONTÍNUA, DOS SERVIÇOS DE APOIO ADMINISTRATIVO, EM REGIME DE DEDICAÇÃO EXCLUSIVA DE MÃO DE OBRA, A SER EXECUTADO NAS DEPENDÊNCIAS DA CODEVASF - RECIFE/PE
B6: ITEM | C6: DISCRIMINAÇÃO | D6: UNIDADE | E6: Nº DE MESES | F6: Nº DE POSTOS/MÊS | G6: QUANT. | H6: PREÇO UNITÁRIO | I6: TOTAL
B9: I.A | C9: EQUIPE
B10: 1.0 | C10: ASSISTENTE ADMINISTRATIVO
B11: 1.1 | C11: ='Resumo postos'!B11 -> Auxiliar Administrativo | D11: mês | E11: 12 | F11: ='Resumo postos'!H11 -> 3 | G11: =E11*F11 -> 36 | H11: ='Resumo postos'!E11 -> 3880.22 | I11: =ROUND(G11*H11,2) -> 139687.92
B12: 1.2 | C12: ='Resumo postos'!B12 -> Administrativo - Nível I | D12: mês | E12: 12 | F12: ='Resumo postos'!H12 -> 2 | G12: =E12*F12 -> 24 | H12: ='Resumo postos'!E12 -> 5552.03 | I12: =ROUND(G12*H12,2) -> 133248.72
B13: 1.3 | C13: Recepcionista | D13: mês | E13: 12 | F13: ='Resumo postos'!H8 -> 1 | G13: =E13*F13 -> 12 | H13: ='Resumo postos'!E8 -> 4141.47 | I13: =ROUND(G13*H13,2) -> 49697.64
B14: 2.0 | C14: ASSISTENTE DE GABINETE
B15: 2.2 | C15: ='Resumo postos'!B15 -> Analista Sênior | D15: mês | E15: 12 | F15: ='Resumo postos'!H15 -> 1 | G15: =E15*F15 -> 12 | H15: ='Resumo postos'!E15 -> 17528.34 | I15: =ROUND(G15*H15,2) -> 210340.08
B16: 3.0 | C16: ASSISTENTE SUPERINTENDÊNCIA
B17: 3.1 | C17: ='Resumo postos'!B18 -> Auxiliar Administrativo | D17: mês | E17: 12 | F17: ='Resumo postos'!H18 -> 1 | G17: =E17*F17 -> 12 | H17: ='Resumo postos'!E18 -> 3880.22 | I17: 46562.64
B18: 3.2 | C18: ='Resumo postos'!B19 -> Analista Sênior | D18: mês | E18: 12 | F18: ='Resumo postos'!H19 -> 2 | G18: =E18*F18 -> 24 | H18: ='Resumo postos'!E19 -> 17528.34 | I18: =ROUND(G18*H18,2) -> 420680.16
B19: 4.0 | C19: ASSISTENTE DE COMUNICAÇÃO
B20: 4.2 | C20: ='Resumo postos'!B22 -> Assistente de Comunicação | D20: mês | E20: 12 | F20: ='Resumo postos'!H22 -> 1 | G20: =E20*F20 -> 12 | H20: ='Resumo postos'!E22 -> 9400.06 | I20: 112800.72
B21: 5.0 | C21: ASSISTENTE DE CONDUÇÃO
B22: 5.1 | C22: ='Resumo postos'!B25 -> Assistente de Condução | D22: mês | E22: 12 | F22: 2 | G22: =E22*F22 -> 24 | H22: ='Resumo postos'!E25 -> 6822.04 | I22: =ROUND(G22*H22,2) -> 163728.96
B23: 5.2 | C23: Diárias | D23: mês | E23: 12 | F23: ='Resumo postos'!H28 -> 1 | G23: =E23*F23 -> 12 | H23: ='Resumo postos'!E28 -> 1820.35 | I23: 21844.2
B24: 5.3 | C24: Horas Extras | D24: mês | E24: 12 | F24: ='Resumo postos'!H31 -> 1 | G24: 12 | H24: ='Resumo postos'!E31 -> 1307.7 | I24: 15692.4
B25: TOTAL GERAL: | I25: =SUM(I11:I24) -> 1314283.44

Sheet Planilha1
B1: ITEM | C1: DISCRIMINAÇÃO | D1: UNIDADE | E1: Nº DE MESES | F1: Nº DE POSTOS/MÊS
B4: 1.0 | C4: ASSISTENTE ADMINISTRATIVO
B5: 1.1 | C5: ='Resumo postos'!B11 -> Auxiliar Administrativo | D5: mês | E5: 12 | F5: ='Resumo postos'!H11 -> 3
B6: 1.2 | C6: ='Resumo postos'!B12 -> Administrativo - Nível I | D6: mês | E6: 12 | F6: ='Resumo postos'!H12 -> 2
B7: 1.3 | C7: Recepcionista | D7: mês | E7: 12 | F7: ='Resumo postos'!H8 -> 1
B8: 2.0 | C8: ASSISTENTE DE GABINETE
B9: 2.2 | C9: ='Resumo postos'!B15 -> Analista Sênior | D9: mês | E9: 12 | F9: ='Resumo postos'!H15 -> 1
B10: 3.0 | C10: ASSISTENTE SUPERINTENDÊNCIA
B11: 3.1 | C11: ='Resumo postos'!B18 -> Auxiliar Administrativo | D11: mês | E11: 12 | F11: ='Resumo postos'!H18 -> 1
B12: 3.2 | C12: ='Resumo postos'!B19 -> Analista Sênior | D12: mês | E12: 12 | F12: ='Resumo postos'!H19 -> 2
B13: 4.0 | C13: ASSISTENTE DE COMUNICAÇÃO
B14: 4.2 | C14: ='Resumo postos'!B22 -> Assistente de Comunicação | D14: mês | E14: 12 | F14: ='Resumo postos'!H22 -> 1
B15: 5.0 | C15: ASSISTENTE DE CONDUÇÃO
B16: 5.1 | C16: ='Resumo postos'!B25 -> Assistente de Condução | D16: mês | E16: 12 | F16: 2
B17: 5.2 | C17: Diárias | D17: mês | E17: 12 | F17: ='Resumo postos'!H28 -> 1
B18: 5.3 | C18: Horas Extras | D18: mês | E18: 12 | F18: ='Resumo postos'!H31 -> 1

Sheet Recepcionista
A6: PLANILHA DE CUSTOS E FORMAÇÃO DE PREÇOS
B8: Nº Processo | E8: 59530.001128/2023-40
B9: Licitação nº
A10: DISCRIMINAÇÃO DOS SERVIÇOS (dados referentes à contratação)
A12: A | B12: Ano do Acordo, Convenção ou Dissídio Coletivo | F12: 2023 - PE000108/2023
A13: B | B13: Município/UF | F13: Recife/PE
A14: C | B14: Data de Registro no MTE | F14: 15/02/2023
A15: D | B15: Nº de meses de execução contratual | F15: 12 (doze) meses
A17: IDENTIFICAÇÃO DO SERVIÇO
A19: Tipo de Serviço | C19: Unidade de Medida | E19: Quantidade total a contratar (em função da unidade de medida)
A20: Recepcionista | C20: Posto de serviço | E20: 1
A22: 1. MÓDULOS
A24: MÃO DE OBRA
A25: Mão de obra vinculada à execução contratual
A27: Dados para composição dos custos referente à mão de obra
A28: 1 | B28: Tipo de serviço | G28: Recepcionista
A29: 2 | B29: Classificação Brasileira de Ocupações (CBO) | G29: 4221-05
A30: 3 | B30: Salário Normativo da Categoria Profissional | G30: 1424.79
A31: 4 | B31: Categoria profissional (vinculada à execução contratual) | G31: Apoio Administrativo
A32: 5 | B32: Data-Base da categoria (dia/mês/ano) | G32: 1º/01/2023
A35: MÓDULO 1: COMPOSIÇÃO DA REMUNERAÇÃO
A37: 1 | B37: Composição da Remuneração | G37: Valor (R$)
A38: A | B38: Salário Base | G38: =G30 -> 1424.79
B39: Total | G39: =G38 -> 1424.79
A41: MÓDULO 2: ENCARGOS E BENEFÍCIOS ANUAIS, MENSAIS E DIÁRIOS
A43: Submódulo 2.1 - 13º (décimo terceiro) Salário, Férias e Adicional de Férias
A45: 2.1 | B45: 13º (décimo terceiro) Salário, Férias e Adicional de Férias | F45: % | G45: Valor (R$)
A46: A | B46: 13º (décimo terceiro) Salário | F46: 0.0833 | G46: =G39*F46 -> 118.69
A47: B | B47: Férias e Adicional de Férias | F47: 0.1111 | G47: =G39*F47 -> 158.29
A48: TOTAL | F48: =SUM(F46:F47) -> 0.1944 | G48: =SUM(G46:G47) -> 276.98
A50: Submódulo 2.2 - Encargos previdenciários (GPS), Fundo de Garantia por tempo de Serviço (FGTS) e outras contribuições:
A52: 2.2 | B52: GPS, FGTS e outras contribuiçoes | F52: % | G52: Valor (R$)
A53: A | B53: INSS | F53: 0.2 | G53: =($G$39+$G$48)*F53 -> 340.35
A54: B | B54: Salário Educação | F54: 0.025 | G54: =($G$39+$G$48)*F54 -> 42.54
A55: C | B55: Seguro Acidente do Trabalho/SAT/INSS | F55: 0.03 | G55: 51.05
A56: D | B56: SESI/SESC | F56: 0.015 | G56: 25.53
A57: E | B57: SENAI/SENAC | F57: 0.01 | G57: 17.02
A58: F | B58: INCRA | F58: 0.002 | G58: 3.4
A59: G | B59: FGTS | F59: 0.08 | G59: 136.14
A60: H | B60: SEBRAE | F60: 0.006 | G60: 10.21
A61: TOTAL | F61: =SUM(F53:F60) -> 0.368 | G61: =SUM(G53:G60) -> 626.24
A63: Submódulo 2.3 - Benefícios Mensais e Diários
A65: 2.3 | B65: Benefícios Mensais e Diários | G65: Valor (R$)
A66: A | B66: Transporte | G66: =IF((4.1*2*21)-(6%*G38)>0,(4.1*2*21)-(6%*G38),0) -> 86.71 | I66: =6%*G38 -> 85.49 | J66: = 6% do salario base
A67: B | B67: Auxílio alimentação (Cláusula 11ª CCT 2023) | G67: =(8.91*21) -> 187.11 | I67: 4,1*2*21 = | J67: =4.1*2*21 -> 172.2
A68: C | B68: Outros (Cesta Básica - Cláusula 13ª CCT 2023 + Cobertura Social - Cláusula 15ª CCT 2023) | G68: =123.5+69.98 -> 193.48 | I68: 172,2-85,49 = | J68: =J67-I66 -> 86.71
B69: Total de Benefícios mensais e diários | G69: =SUM(G66:G68) -> 467.3
A71: QUADRO RESUMO DO MÓDULO 2 - Encargos e Benefícios anuais, mensais e diários
A73: 2 | B73: Encargos e Benefícios anuais, mensais e diários | G73: Valor (R$)
A74: 2.1 | B74: 13º (décimo terceiro) Salário, Férias e Adicional de Férias | G74: =G48 -> 276.98
A75: 2.2 | B75: GPS, FGTS e outras contribuiçoes | G75: =G61 -> 626.24
A76: 2.3 | B76: Benefícios Mensais e Diários | G76: =G69 -> 467.3
A77: TOTAL | G77: =SUM(G74:G76) -> 1370.52
A79: MÓDULO 3 - PROVISÃO PARA RESCISÃO
I80: GPS
A81: 3 | B81: Provisão para Rescisão | G81: Valor (R$)
A82: A | B82: Aviso prévio indenizado | G82: =J82 -> 78.88 | H82: =G39+G77-I82 -> 2305.2 | I82: =(G39+G48)*0.288 -> 490.11 | J82: =H82/12*0.4106 -> 78.88
A83: B | B83: Multa do FGTS e contribuição social sobre o Aviso Prévio Indenizado | G83: =I83 -> 27.95 | H83: =G59 -> 136.14 | I83: =(H83*0.4+H83*0.1)*0.4106 -> 27.95 | J83: =H83*0.5*0.4106 -> 27.95
A84: C | B84: Aviso Prévio Trabalhado | G84: =I84 -> 95.65 | H84: =G39+G77 -> 2795.31 | I84: =H84/12*0.4106 -> 95.65
A85: D | B85: Multa do FGTS e contribuição social sobre o Aviso Prévio Trabalhado | G85: =I85 -> 27.95 | H85: =G59 -> 136.14 | I85: =(H85*0.4+H85*0.1)*0.4106 -> 27.95 | J85: =H85*0.5*0.4106 -> 27.95
A86: E | B86: Demissão com Justa Causa | G86: =K86 -> -3.46 | H86: =G46 -> 118.69 | I86: =G47 -> 158.29 | J86: =H86+I86 -> 276.98 | K86: =-J86*0.0125 -> -3.46
A87: TOTAL | G87: =SUM(G82:G86) -> 226.97
A89: MÓDULO 4 - CUSTO DE REPOSIÇÃO DO PROFISSIONAL AUSENTE
A91: Submódulo 4.1 - Ausências Legais
A92: 4.1 | B92: Ausências legais | F92: Dias/Ano | G92: Valor (R$)
A93: A | B93: Férias | F93: 20.9589 | G93: =$I$93*F93/12-0.01 -> 175.94 | H93: =G39+G77+G87 -> 3022.28 | I93: =H93/30 -> 100.74 | J93: =I93*F105 -> 2969.19 | K93: =J93/12 -> 247.43
A94: B | B94: Ausência justificada | F94: 1 | G94: =$I$93*F94/12 -> 8.4
A95: C | B95: Acidente de trabalho | F95: 0.9659 | G95: 8.11
A96: D | B96: Afastamento por doença | F96: 3.4932 | G96: =$I$93*F96/12-0.01 -> 29.32
A97: E | B97: Consulta médica filho | F97: 0.2688 | G97: 2.26
A98: F | B98: Óbitos na família | F98: 0.0427 | G98: 0.36
A99: G | B99: Casamento | F99: 0.0355 | G99: 0.3
A100: H | B100: Doação de Sangue | F100: 0.02 | G100: 0.17
A101: I | B101: Testemunho | F101: 0.004 | G101: 0.03
A102: J | B102: Paternidade | F102: 0.1997 | G102: 1.68
A103: K | B103: Maternidade | F103: 2.4753 | G103: 20.78
A104: L | B104: Consulta pré-natal | F104: 0.0098 | G104: 0.08
A105: TOTAL | F105: =SUM(F93:F104) -> 29.4738 | G105: =SUM(G93:G104) -> 247.43
A108: QUADRO RESUMO DO MÓDULO 4 - Custo de Reposição do Profissional Ausente
A110: 4 | B110: Custo de Reposição do Profissional Ausente | G110: Valor (R$)
A111: 4.1 | B111: Ausências legais | G111: =G105 -> 247.43
A112: TOTAL | G112: =G111 -> 247.43
A114: MÓDULO 5 - INSUMOS DIVERSOS
A116: 5 | B116: Insumos Diversos | G116: Valor (R$)
A117: A | B117: Uniformes | G117: 30
B118: Total | G118: =SUM(G117) -> 30
A120: MÓDULO 6 - CUSTOS INDIRETOS, TRIBUTOS E LUCRO
A122: 6 | B122: Custos Indiretos, Tributos e Lucro | F122: % | G122: Valor (R$)
A123: A | B123: Custos Indiretos | F123: 0.025 | G123: =G139*F123 -> 82.49
A124: B | B124: Lucro | F124: 0.05 | G124: =(G139+G123)*F124 -> 169.11
A125: C | B125: Tributos
A126: c.1 | B126: COFINS | F126: 0.076 | G126: =E146 -> 314.75
A127: c.2 | B127: PIS | F127: 0.0165 | G127: =E147 -> 68.33
A128: c.3 | B128: ISSQN | F128: 0.05 | G128: =E148 -> 207.08
B129: Total | F129: =SUM(F123:F128) -> 0.2175 | G129: =SUM(G123:G128) -> 841.76
A131: 2. QUADRO - RESUMO DO CUSTO POR EMPREGADO
B133: Mão de obra vinculada à execução contratual (valor por empregado) | G133: Valor (R$)
A134: A | B134: Módulo 1 - Composição da Remuneração | G134: =G39 -> 1424.79
A135: B | B135: Módulo 2 - Encargos e Benefícios Anuais, Mensais e Diários | G135: =G77 -> 1370.52
A136: C | B136: Módulo 3 - Provisão para recisão | G136: =G87 -> 226.97
A137: D | B137: Módulo 4 - Custo de Reposição do Profissional Ausente | G137: =G112 -> 247.43
A138: E | B138: Módulo 5 - Insumos diversos | G138: =G118 -> 30
A139: Subtotal ( A + B +C + D + E) | G139: =SUM(G134:G138) -> 3299.71
A140: E | B140: Módulo 6 - Custos indiretos, Tributos e lucro | G140: =G129 -> 841.76
A141: Valor total por empregado | G141: =G139+G140 -> 4141.47
A143: P0 = (MÓD 1+MÓD 2+MÓD 3+MÓD 4+MÓD 5) + (CI) + (L) | E143: =G39+G77+G87+G112+G118+G123+G124 -> 3551.31
A144: P1 = P0/(1 - (pis+confins+iss)) | E144: =E143/(1-(F126+F127+F128)) -> 4141.47
A145: T = P1 - P0 | E145: =E144-E143 -> 590.16
A146: COFINS = ((cofins)/(pis+cofins+iss) x T | E146: =((F126)/(F126+F127+F128))*E145 -> 314.75
A147: PIS = ((pis)/(pis+cofins+iss) x T | E147: =((F127)/(F126+F127+F128))*E145 -> 68.33
A148: ISS = (iss/(pis+cofins+iss)) x T | E148: =((F128/(F126+F127+F128))*E145)+0.01 -> 207.08

Sheet Aux. Adm.
A6: PLANILHA DE CUSTOS E FORMAÇÃO DE PREÇOS
B8: Nº Processo | E8: =Recepcionista!E8 -> 59530.001128/2023-40
B9: Licitação nº
A10: DISCRIMINAÇÃO DOS SERVIÇOS (dados referentes à contratação)
A12: A | B12: Ano do Acordo, Convenção ou Dissídio Coletivo | F12: 2023 - PE000108/2023
A13: B | B13: Município/UF | F13: Recife/PE
A14: C | B14: Data de Registro no MTE | F14: 15/02/2023
A15: D | B15: Nº de meses de execução contratual | F15: 12 (doze) meses
A17: IDENTIFICAÇÃO DO SERVIÇO
A19: Tipo de Serviço | C19: Unidade de Medida | E19: Quantidade total a contratar (em função da unidade de medida)
A20: Auxiliar Administrativo | C20: Posto de serviço | E20: 1
A22: 1. MÓDULOS
A24: MÃO DE OBRA
A25: Mão de obra vinculada à execução contratual
A27: Dados para composição dos custos referente à mão de obra
A28: 1 | B28: Tipo de serviço | G28: Auxiliar Administrativo (A4)
A29: 2 | B29: Classificação Brasileira de Ocupações (CBO) | G29: 4110-10
A30: 3 | B30: Salário Normativo da Categoria Profissional | G30: 1328.3
A31: 4 | B31: Categoria profissional (vinculada à execução contratual) | G31: Apoio Administrativo
A32: 5 | B32: Data-Base da categoria (dia/mês/ano) | G32: =Recepcionista!G32 -> 1º/01/2023
A35: MÓDULO 1: COMPOSIÇÃO DA REMUNERAÇÃO
A37: 1 | B37: Composição da Remuneração | G37: Valor (R$)
A38: A | B38: Salário Base | G38: =G30 -> 1328.3
B39: Total | G39: =G38 -> 1328.3
A41: MÓDULO 2: ENCARGOS E BENEFÍCIOS ANUAIS, MENSAIS E DIÁRIOS
A43: Submódulo 2.1 - 13º (décimo terceiro) Salário, Férias e Adicional de Férias
A45: 2.1 | B45: 13º (décimo terceiro) Salário, Férias e Adicional de Férias | F45: % | G45: Valor (R$)
A46: A | B46: 13º (décimo terceiro) Salário | F46: =Recepcionista!F46 -> 0.0833 | G46: =G39*F46 -> 110.65
A47: B | B47: Férias e Adicional de Férias | F47: =Recepcionista!F47 -> 0.1111 | G47: =G39*F47 -> 147.57
A48: TOTAL | F48: =Recepcionista!F48 -> 0.1944 | G48: =SUM(G46:G47) -> 258.22
A50: Submódulo 2.2 - Encargos previdenciários (GPS), Fundo de Garantia por tempo de Serviço (FGTS) e outras contribuições:
A52: 2.2 | B52: GPS, FGTS e outras contribuiçoes | F52: % | G52: Valor (R$)
A53: A | B53: INSS | F53: =Recepcionista!F53 -> 0.2 | G53: =($G$39+$G$48)*F53 -> 317.3
A54: B | B54: Salário Educação | F54: =Recepcionista!F54 -> 0.025 | G54: =($G$39+$G$48)*F54 -> 39.66
A55: C | B55: Seguro Acidente do Trabalho/SAT/INSS | F55: =Recepcionista!F55 -> 0.03 | G55: 47.6
A56: D | B56: SESI/SESC | F56: =Recepcionista!F56 -> 0.015 | G56: 23.8
A57: E | B57: SENAI/SENAC | F57: =Recepcionista!F57 -> 0.01 | G57: 15.87
A58: F | B58: INCRA | F58: =Recepcionista!F58 -> 0.002 | G58: 3.17
A59: G | B59: FGTS | F59: =Recepcionista!F59 -> 0.08 | G59: 126.92
A60: H | B60: SEBRAE | F60: =Recepcionista!F60 -> 0.006 | G60: 9.52
A61: TOTAL | F61: =Recepcionista!F61 -> 0.368 | G61: =SUM(G53:G60) -> 583.84
A63: Submódulo 2.3 - Benefícios Mensais e Diários
A65: 2.3 | B65: Benefícios Mensais e Diários | G65: Valor (R$)
A66: A | B66: Transporte | G66: =IF((4.1*2*21)-(6%*G38)>0,(4.1*2*21)-(6%*G38),0) -> 92.5 | I66: =6%*G38 -> 79.7 | J66: = 6% do salario base
A67: B | B67: Auxílio alimentação (Cláusula 11ª CCT 2023) | G67: =(8.91*21) -> 187.11 | I67: 4,1*2*21 = | J67: =4.1*2*21 -> 172.2
A68: C | B68: Outros (Cesta Básica - Cláusula 13ª CCT 2023 + Cobertura Social - Cláusula 15ª CCT 2023) | G68: =69.98+123.5 -> 193.48 | I68: 172,2-79,7 = | J68: =J67-I66 -> 92.5
B69: Total de Benefícios mensais e diários | G69: =SUM(G66:G68) -> 473.09
A71: QUADRO RESUMO DO MÓDULO 2 - Encargos e Benefícios anuais, mensais e diários
A73: 2 | B73: Encargos e Benefícios anuais, mensais e diários | G73: Valor (R$)
A74: 2.1 | B74: 13º (décimo terceiro) Salário, Férias e Adicional de Férias | G74: =G48 -> 258.22
A75: 2.2 | B75: GPS, FGTS e outras contribuiçoes | G75: =G61 -> 583.84
A76: 2.3 | B76: Benefícios Mensais e Diários | G76: =G69 -> 473.09
A77: TOTAL | G77: =SUM(G74:G76) -> 1315.15
A79: MÓDULO 3 - PROVISÃO PARA RESCISÃO
I80: GPS
A81: 3 | B81: Provisão para Rescisão | G81: Valor (R$)
A82: A | B82: Aviso prévio indenizado | G82: =J82 -> 74.82 | H82: =G39+G77-I82 -> 2186.53 | I82: =(G39+G48)*0.288 -> 456.92 | J82: =H82/12*0.4106 -> 74.82
A83: B | B83: Multa do FGTS e contribuição social sobre o Aviso Prévio Indenizado | G83: =I83 -> 26.06 | H83: =G59 -> 126.92 | I83: =(H83*0.4+H83*0.1)*0.4106 -> 26.06 | J83: =H83*0.5*0.4106 -> 26.06
A84: C | B84: Aviso Prévio Trabalhado | G84: 90.45 | H84: =G39+G77 -> 2643.45 | I84: =H84/12*0.4106 -> 90.45
A85: D | B85: Multa do FGTS e contribuição social sobre o Aviso Prévio Trabalhado | G85: 26.06 | H85: =G59 -> 126.92 | I85: =(H85*0.4+H85*0.1)*0.4106 -> 26.06 | J85: =H85*0.5*0.4106 -> 26.06
A86: E | B86: Demissão com Justa Causa | G86: =K86 -> -3.23 | H86: =G46 -> 110.65 | I86: =G47 -> 147.57 | J86: =H86+I86 -> 258.22 | K86: =-J86*0.0125 -> -3.23
A87: TOTAL | G87: =SUM(G82:G86) -> 214.16
A89: MÓDULO 4 - CUSTO DE REPOSIÇÃO DO PROFISSIONAL AUSENTE
A91: Submódulo 4.1 - Ausências Legais
A92: 4.1 | B92: Ausências legais | F92: Dias/Ano | G92: Valor (R$)
A93: A | B93: Férias | F93: =Recepcionista!F93 -> 20.9589 | G93: =$I$93*F93/12-0.01 -> 166.35 | H93: =G39+G77+G87 -> 2857.61 | I93: =H93/30 -> 95.25 | J93: =I93*F105 -> 2807.38 | K93: =J93/12 -> 233.95
A94: B | B94: Ausência justificada | F94: =Recepcionista!F94 -> 1 | G94: =$I$93*F94/12 -> 7.94
A95: C | B95: Acidente de trabalho | F95: =Recepcionista!F95 -> 0.9659 | G95: 7.67
A96: D | B96: Afastamento por doença | F96: =Recepcionista!F96 -> 3.4932 | G96: =$I$93*F96/12 -> 27.73
A97: E | B97: Consulta médica filho | F97: =Recepcionista!F97 -> 0.2688 | G97: 2.13
A98: F | B98: Óbitos na família | F98: =Recepcionista!F98 -> 0.0427 | G98: 0.34
A99: G | B99: Casamento | F99: =Recepcionista!F99 -> 0.0355 | G99: 0.28
A100: H | B100: Doação de Sangue | F100: =Recepcionista!F100 -> 0.02 | G100: 0.16
A101: I | B101: Testemunho | F101: =Recepcionista!F101 -> 0.004 | G101: 0.03
A102: J | B102: Paternidade | F102: =Recepcionista!F102 -> 0.1997 | G102: 1.59
A103: K | B103: Maternidade | F103: =Recepcionista!F103 -> 2.4753 | G103: 19.65
A104: L | B104: Consulta pré-natal | F104: =Recepcionista!F104 -> 0.0098 | G104: 0.08
A105: TOTAL | F105: =Recepcionista!F105 -> 29.4738 | G105: =SUM(G93:G104) -> 233.95
A108: QUADRO RESUMO DO MÓDULO 4 - Custo de Reposição do Profissional Ausente
A110: 4 | B110: Custo de Reposição do Profissional Ausente | G110: Valor (R$)
A111: 4.1 | B111: Ausências legais | G111: =G105 -> 233.95
A112: TOTAL | G112: =G111 -> 233.95
A114: MÓDULO 5 - INSUMOS DIVERSOS
A116: 5 | B116: Insumos Diversos | G116: Valor (R$)
A117: A | B117: Uniformes | G117: 0
B118: Total | G118: =SUM(G117) -> 0
A120: MÓDULO 6 - CUSTOS INDIRETOS, TRIBUTOS E LUCRO
A122: 6 | B122: Custos Indiretos, Tributos e Lucro | F122: % | G122: Valor (R$)
A123: A | B123: Custos Indiretos | F123: =Recepcionista!F123 -> 0.025 | G123: =G139*F123 -> 77.29
A124: B | B124: Lucro | F124: =Recepcionista!F124 -> 0.05 | G124: =(G139+G123)*F124 -> 158.44
A125: C | B125: Tributos
A126: c.1 | B126: COFINS | F126: =Recepcionista!F126 -> 0.076 | G126: =E146 -> 294.9
A127: c.2 | B127: PIS | F127: =Recepcionista!F127 -> 0.0165 | G127: =E147 -> 64.02
A128: c.3 | B128: ISSQN | F128: =Recepcionista!F128 -> 0.05 | G128: =E148 -> 194.01
B129: Total | F129: =Recepcionista!F129 -> 0.2175 | G129: =SUM(G123:G128) -> 788.66
A131: 2. QUADRO - RESUMO DO CUSTO POR EMPREGADO
B133: Mão de obra vinculada à execução contratual (valor por empregado) | G133: Valor (R$)
A134: A | B134: Módulo 1 - Composição da Remuneração | G134: =G39 -> 1328.3
A135: B | B135: Módulo 2 - Encargos e Benefícios Anuais, Mensais e Diários | G135: =G77 -> 1315.15
A136: C | B136: Módulo 3 - Provisão para recisão | G136: =G87 -> 214.16
A137: D | B137: Módulo 4 - Custo de Reposição do Profissional Ausente | G137: =G112 -> 233.95
A138: E | B138: Módulo 5 - Insumos diversos | G138: =G118 -> 0
A139: Subtotal ( A + B +C + D + E) | G139: =SUM(G134:G138) -> 3091.56
A140: E | B140: Módulo 6 - Custos indiretos, Tributos e lucro | G140: =G129 -> 788.66
A141: Valor total por empregado | G141: =G139+G140 -> 3880.22
A143: P0 = (MÓD 1+MÓD 2+MÓD 3+MÓD 4+MÓD 5) + (CI) + (L) | E143: =G39+G77+G87+G112+G118+G123+G124 -> 3327.29
A144: P1 = P0/(1 - (pis+confins+iss)) | E144: =E143/(1-(F126+F127+F128)) -> 3880.22
A145: T = P1 - P0 | E145: =E144-E143 -> 552.93
A146: COFINS = ((cofins)/(pis+cofins+iss) x T | E146: =((F126)/(F126+F127+F128))*E145 -> 294.9
A147: PIS = ((pis)/(pis+cofins+iss) x T | E147: =((F127)/(F126+F127+F128))*E145 -> 64.02
A148: ISS = (iss/(pis+cofins+iss)) x T | E148: =((F128/(F126+F127+F128))*E145) -> 194.01

Sheet Ass. Adm. I
A6: PLANILHA DE CUSTOS E FORMAÇÃO DE PREÇOS
B8: ='Aux. Adm.'!B8 -> Nº Processo | E8: ='Aux. Adm.'!E8 -> 59530.001128/2023-40
B9: ='Aux. Adm.'!B9 -> Licitação nº
A10: DISCRIMINAÇÃO DOS SERVIÇOS (dados referentes à contratação)
A12: A | B12: Ano do Acordo, Convenção ou Dissídio Coletivo | F12: ='Aux. Adm.'!F12 -> 2023 - PE000108/2023
A13: B | B13: Município/UF | F13: ='Aux. Adm.'!F13 -> Recife/PE
A14: C | B14: Data de Registro no MTE | F14: ='Aux. Adm.'!F14 -> 15/02/2023
A15: D | B15: Nº de meses de execução contratual | F15: ='Aux. Adm.'!F15 -> 12 (doze) meses
A17: IDENTIFICAÇÃO DO SERVIÇO
A19: Tipo de Serviço | C19: Unidade de Medida | E19: Quantidade total a contratar (em função da unidade de medida)
A20: Assistente Administrativo-Nivel I | C20: Posto de serviço | E20: 1
A22: 1. MÓDULOS
A24: MÃO DE OBRA
A25: Mão de obra vinculada à execução contratual
A27: Dados para composição dos custos referente à mão de obra
A28: 1 | B28: Tipo de serviço | G28: Administrativo - Nível I (A3)
A29: 2 | B29: Classificação Brasileira de Ocupações (CBO) | G29: 4110-10
A30: 3 | B30: Salário Normativo da Categoria Profissional | G30: 2127.02
A31: 4 | B31: Categoria profissional (vinculada à execução contratual) | G31: Administrativo I
A32: 5 | B32: Data-Base da categoria (dia/mês/ano) | G32: =Recepcionista!G32 -> 1º/01/2023
A35: MÓDULO 1: COMPOSIÇÃO DA REMUNERAÇÃO
A37: 1 | B37: Composição da Remuneração | G37: Valor (R$)
A38: A | B38: Salário Base | G38: =G30 -> 2127.02
B39: Total | G39: =G38 -> 2127.02
A41: MÓDULO 2: ENCARGOS E BENEFÍCIOS ANUAIS, MENSAIS E DIÁRIOS
A43: Submódulo 2.1 - 13º (décimo terceiro) Salário, Férias e Adicional de Férias
A45: 2.1 | B45: 13º (décimo terceiro) Salário, Férias e Adicional de Férias | F45: % | G45: Valor (R$)
A46: A | B46: 13º (décimo terceiro) Salário | F46: ='Aux. Adm.'!F46 -> 0.0833 | G46: =G39*F46 -> 177.18
A47: B | B47: Férias e Adicional de Férias | F47: ='Aux. Adm.'!F47 -> 0.1111 | G47: =G39*F47 -> 236.31
A48: TOTAL | F48: =SUM(F46:F47) -> 0.1944 | G48: =SUM(G46:G47) -> 413.49
A50: Submódulo 2.2 - Encargos previdenciários (GPS), Fundo de Garantia por tempo de Serviço (FGTS) e outras contribuições:
A52: 2.2 | B52: GPS, FGTS e outras contribuiçoes | F52: % | G52: Valor (R$)
A53: A | B53: INSS | F53: ='Aux. Adm.'!F53 -> 0.2 | G53: =($G$39+$G$48)*F53 -> 508.1
A54: B | B54: Salário Educação | F54: ='Aux. Adm.'!F54 -> 0.025 | G54: =($G$39+$G$48)*F54 -> 63.51
A55: C | B55: Seguro Acidente do Trabalho/SAT/INSS | F55: ='Aux. Adm.'!F55 -> 0.03 | G55: 76.22
A56: D | B56: SESI/SESC | F56: ='Aux. Adm.'!F56 -> 0.015 | G56: 38.11
A57: E | B57: SENAI/SENAC | F57: ='Aux. Adm.'!F57 -> 0.01 | G57: 25.41
A58: F | B58: INCRA | F58: ='Aux. Adm.'!F58 -> 0.002 | G58: 5.08
A59: G | B59: FGTS | F59: ='Aux. Adm.'!F59 -> 0.08 | G59: 203.24
A60: H | B60: SEBRAE | F60: ='Aux. Adm.'!F60 -> 0.006 | G60: 15.24
A61: TOTAL | F61: ='Aux. Adm.'!F61 -> 0.368 | G61: =SUM(G53:G60) -> 934.91
A63: Submódulo 2.3 - Benefícios Mensais e Diários
A65: 2.3 | B65: Benefícios Mensais e Diários | G65: Valor (R$)
A66: A | B66: Transporte | G66: =IF((4.1*2*21)-(6%*G38)>0,(4.1*2*21)-(6%*G38),0) -> 44.58 | I66: =6%*G38 -> 127.62 | J66: = 6% do salario base
A67: B | B67: Auxílio alimentação (Cláusula 11ª CCT 2023) | G67: =(8.91*21) -> 187.11 | I67: 4,1*2*21 = | J67: =4.1*2*21 -> 172.2
A68: C | B68: Outros (Cobertura Social - Cláusula 15ª CCT 2023) | G68: =69.98 -> 69.98 | I68: 172,2-127,62 = | J68: =J67-I66 -> 44.58
B69: Total de Benefícios mensais e diários | G69: =SUM(G66:G68) -> 301.67
A71: QUADRO RESUMO DO MÓDULO 2 - Encargos e Benefícios anuais, mensais e diários
A73: 2 | B73: Encargos e Benefícios anuais, mensais e diários | G73: Valor (R$)
A74: 2.1 | B74: 13º (décimo terceiro) Salário, Férias e Adicional de Férias | G74: =G48 -> 413.49
A75: 2.2 | B75: GPS, FGTS e outras contribuiçoes | G75: =G61 -> 934.91
A76: 2.3 | B76: Benefícios Mensais e Diários | G76: =G69 -> 301.67
A77: TOTAL | G77: =SUM(G74:G76) -> 1650.07
A79: MÓDULO 3 - PROVISÃO PARA RESCISÃO
I80: GPS
A81: 3 | B81: Provisão para Rescisão | G81: Valor (R$)
A82: A | B82: Aviso prévio indenizado | G82: =J82 -> 104.2 | H82: =G39+G77-I82 -> 3045.42 | I82: =(G39+G48)*0.288 -> 731.67 | J82: =H82/12*0.4106 -> 104.2
A83: B | B83: Multa do FGTS e contribuição social sobre o Aviso Prévio Indenizado | G83: =I83 -> 41.73 | H83: =G59 -> 203.24 | I83: =(H83*0.4+H83*0.1)*0.4106 -> 41.73 | J83: =H83*0.5*0.4106 -> 41.73
A84: C | B84: Aviso Prévio Trabalhado | G84: 129.24 | H84: =G39+G77 -> 3777.09 | I84: =H84/12*0.4106 -> 129.24
A85: D | B85: Multa do FGTS e contribuição social sobre o Aviso Prévio Trabalhado | G85: 41.73 | H85: =G59 -> 203.24 | I85: =(H85*0.4+H85*0.1)*0.4106 -> 41.73 | J85: =H85*0.5*0.4106 -> 41.73
A86: E | B86: Demissão com Justa Causa | G86: =K86 -> -5.17 | H86: =G46 -> 177.18 | I86: =G47 -> 236.31 | J86: =H86+I86 -> 413.49 | K86: =-J86*0.0125 -> -5.17
A87: TOTAL | G87: =SUM(G82:G86) -> 311.73
A89: MÓDULO 4 - CUSTO DE REPOSIÇÃO DO PROFISSIONAL AUSENTE
A91: Submódulo 4.1 - Ausências Legais
A92: 4.1 | B92: Ausências legais | F92: Dias/Ano | G92: Valor (R$)
A93: A | B93: Férias | F93: ='Aux. Adm.'!F93 -> 20.9589 | G93: =$I$93*F93/12+0.01 -> 238.05 | H93: =G39+G77+G87 -> 4088.82 | I93: =H93/30 -> 136.29 | J93: =I93*F105 -> 4016.98 | K93: =J93/12 -> 334.75
A94: B | B94: Ausência justificada | F94: ='Aux. Adm.'!F94 -> 1 | G94: =$I$93*F94/12 -> 11.36
A95: C | B95: Acidente de trabalho | F95: ='Aux. Adm.'!F95 -> 0.9659 | G95: 10.97
A96: D | B96: Afastamento por doença | F96: ='Aux. Adm.'!F96 -> 3.4932 | G96: =$I$93*F96/12 -> 39.67
A97: E | B97: Consulta médica filho | F97: ='Aux. Adm.'!F97 -> 0.2688 | G97: 3.05
A98: F | B98: Óbitos na família | F98: ='Aux. Adm.'!F98 -> 0.0427 | G98: 0.48
A99: G | B99: Casamento | F99: ='Aux. Adm.'!F99 -> 0.0355 | G99: 0.4
A100: H | B100: Doação de Sangue | F100: ='Aux. Adm.'!F100 -> 0.02 | G100: 0.23
A101: I | B101: Testemunho | F101: ='Aux. Adm.'!F101 -> 0.004 | G101: 0.05
A102: J | B102: Paternidade | F102: ='Aux. Adm.'!F102 -> 0.1997 | G102: 2.27
A103: K | B103: Maternidade | F103: ='Aux. Adm.'!F103 -> 2.4753 | G103: 28.11
A104: L | B104: Consulta pré-natal | F104: ='Aux. Adm.'!F104 -> 0.0098 | G104: 0.11
A105: TOTAL | F105: ='Aux. Adm.'!F105 -> 29.4738 | G105: =SUM(G93:G104) -> 334.75
A108: QUADRO RESUMO DO MÓDULO 4 - Custo de Reposição do Profissional Ausente
A110: 4 | B110: Custo de Reposição do Profissional Ausente | G110: Valor (R$)
A111: 4.1 | B111: Ausências legais | G111: =G105 -> 334.75
A112: TOTAL | G112: =G111 -> 334.75
A114: MÓDULO 5 - INSUMOS DIVERSOS
A116: 5 | B116: Insumos Diversos | G116: Valor (R$)
A117: A | B117: Uniformes
B118: Total | G118: =SUM(G117) -> 0
A120: MÓDULO 6 - CUSTOS INDIRETOS, TRIBUTOS E LUCRO
A122: 6 | B122: Custos Indiretos, Tributos e Lucro | F122: % | G122: Valor (R$)
A123: A | B123: Custos Indiretos | F123: ='Aux. Adm.'!F123 -> 0.025 | G123: =G139*F123 -> 110.59
A124: B | B124: Lucro | F124: ='Aux. Adm.'!F124 -> 0.05 | G124: =(G139+G123)*F124 -> 226.71
A125: C | B125: Tributos
A126: c.1 | B126: COFINS | F126: ='Aux. Adm.'!F126 -> 0.076 | G126: =E146 -> 421.95
A127: c.2 | B127: PIS | F127: ='Aux. Adm.'!F127 -> 0.0165 | G127: =E147 -> 91.61
A128: c.3 | B128: ISSQN | F128: ='Aux. Adm.'!F128 -> 0.05 | G128: =E148 -> 277.6
B129: Total | F129: ='Aux. Adm.'!F129 -> 0.2175 | G129: =SUM(G123:G128) -> 1128.46
A131: 2. QUADRO - RESUMO DO CUSTO POR EMPREGADO
B133: Mão de obra vinculada à execução contratual (valor por empregado) | G133: Valor (R$)
A134: A | B134: Módulo 1 - Composição da Remuneração | G134: =G39 -> 2127.02
A135: B | B135: Módulo 2 - Encargos e Benefícios Anuais, Mensais e Diários | G135: =G77 -> 1650.07
A136: C | B136: Módulo 3 - Provisão para recisão | G136: =G87 -> 311.73
A137: D | B137: Módulo 4 - Custo de Reposição do Profissional Ausente | G137: =G112 -> 334.75
A138: E | B138: Módulo 5 - Insumos diversos | G138: =G118 -> 0
A139: Subtotal ( A + B +C + D + E) | G139: =SUM(G134:G138) -> 4423.57
A140: E | B140: Módulo 6 - Custos indiretos, Tributos e lucro | G140: =G129 -> 1128.46
A141: Valor total por empregado | G141: =G139+G140 -> 5552.03
A143: P0 = (MÓD 1+MÓD 2+MÓD 3+MÓD 4+MÓD 5) + (CI) + (L) | E143: =G39+G77+G87+G112+G118+G123+G124 -> 4760.87
A144: P1 = P0/(1 - (pis+confins+iss)) | E144: =E143/(1-(F126+F127+F128)) -> 5552.03
A145: T = P1 - P0 | E145: =E144-E143 -> 791.16
A146: COFINS = ((cofins)/(pis+cofins+iss) x T | E146: =((F126)/(F126+F127+F128))*E145 -> 421.95
A147: PIS = ((pis)/(pis+cofins+iss) x T | E147: =((F127)/(F126+F127+F128))*E145 -> 91.61
A148: ISS = (iss/(pis+cofins+iss)) x T | E148: =((F128/(F126+F127+F128))*E145) -> 277.6

Sheet Analista
A6: PLANILHA DE CUSTOS E FORMAÇÃO DE PREÇOS
B8: ='Aux. Adm.'!B8 -> Nº Processo | E8: ='Aux. Adm.'!E8 -> 59530.001128/2023-40
B9: ='Aux. Adm.'!B9 -> Licitação nº
A10: DISCRIMINAÇÃO DOS SERVIÇOS (dados referentes à contratação)
A12: A | B12: Ano do Acordo, Convenção ou Dissídio Coletivo | F12: ='Aux. Adm.'!F12 -> 2023 - PE000108/2023
A13: B | B13: Município/UF | F13: ='Aux. Adm.'!F13 -> Recife/PE
A14: C | B14: Data de Registro no MTE | F14: ='Aux. Adm.'!F14 -> 15/02/2023
A15: D | B15: Nº de meses de execução contratual | F15: ='Aux. Adm.'!F15 -> 12 (doze) meses
A17: IDENTIFICAÇÃO DO SERVIÇO
A19: Tipo de Serviço | C19: Unidade de Medida | E19: Quantidade total a contratar (em função da unidade de medida)
A20: Analista Sênior | C20: Posto de serviço | E20: 1
A22: 1. MÓDULOS
A24: MÃO DE OBRA
A25: Mão de obra vinculada à execução contratual
A27: Dados para composição dos custos referente à mão de obra
A28: 1 | B28: Tipo de serviço | G28: Analista Sênior
A29: 2 | B29: Classificação Brasileira de Ocupações (CBO) | G29: 4110-10
A30: 3 | B30: Salário Normativo da Categoria Profissional | G30: 7134.75
A31: 4 | B31: Categoria profissional (vinculada à execução contratual) | G31: Analista Sênior
A32: 5 | B32: Data-Base da categoria (dia/mês/ano) | G32: =Recepcionista!G32 -> 1º/01/2023
A35: MÓDULO 1: COMPOSIÇÃO DA REMUNERAÇÃO
A37: 1 | B37: Composição da Remuneração | G37: Valor (R$)
A38: A | B38: Salário Base | G38: =G30 -> 7134.75
B39: Total | G39: =G38 -> 7134.75
A41: MÓDULO 2: ENCARGOS E BENEFÍCIOS ANUAIS, MENSAIS E DIÁRIOS
A43: Submódulo 2.1 - 13º (décimo terceiro) Salário, Férias e Adicional de Férias
A45: 2.1 | B45: 13º (décimo terceiro) Salário, Férias e Adicional de Férias | F45: % | G45: Valor (R$)
A46: A | B46: 13º (décimo terceiro) Salário | F46: ='Ass. Adm. I'!F46 -> 0.0833 | G46: =G39*F46 -> 594.32
A47: B | B47: Férias e Adicional de Férias | F47: ='Ass. Adm. I'!F47 -> 0.1111 | G47: =G39*F47 -> 792.67
A48: TOTAL | F48: ='Ass. Adm. I'!F48 -> 0.1944 | G48: =SUM(G46:G47) -> 1386.99
A50: Submódulo 2.2 - Encargos previdenciários (GPS), Fundo de Garantia por tempo de Serviço (FGTS) e outras contribuições:
A52: 2.2 | B52: GPS, FGTS e outras contribuiçoes | F52: % | G52: Valor (R$)
A53: A | B53: INSS | F53: ='Ass. Adm. I'!F53 -> 0.2 | G53: =($G$39+$G$48)*F53 -> 1704.35
A54: B | B54: Salário Educação | F54: ='Ass. Adm. I'!F54 -> 0.025 | G54: =($G$39+$G$48)*F54 -> 213.04
A55: C | B55: Seguro Acidente do Trabalho/SAT/INSS | F55: ='Ass. Adm. I'!F55 -> 0.03 | G55: 255.65
A56: D | B56: SESI/SESC | F56: ='Ass. Adm. I'!F56 -> 0.015 | G56: 127.83
A57: E | B57: SENAI/SENAC | F57: ='Ass. Adm. I'!F57 -> 0.01 | G57: 85.22
A58: F | B58: INCRA | F58: ='Ass. Adm. I'!F58 -> 0.002 | G58: 17.04
A59: G | B59: FGTS | F59: ='Ass. Adm. I'!F59 -> 0.08 | G59: 681.74
A60: H | B60: SEBRAE | F60: ='Ass. Adm. I'!F60 -> 0.006 | G60: 51.13
A61: TOTAL | F61: =SUM(F53:F60) -> 0.368 | G61: =SUM(G53:G60) -> 3136
A63: Submódulo 2.3 - Benefícios Mensais e Diários
A65: 2.3 | B65: Benefícios Mensais e Diários | G65: Valor (R$)
A66: A | B66: Transporte | G66: =IF((4.1*2*21)-(6%*G38)>0,(4.1*2*21)-(6%*G38),0) -> 0 | I66: =6%*G38 -> 428.09 | J66: = 6% do salario base
A67: B | B67: Auxílio alimentação (Cláusula 11ª CCT 2023) | G67: =(8.91*21) -> 187.11 | I67: 4,1*2*21 = | J67: =4.1*2*21 -> 172.2
A68: C | B68: Outros (Cobertura Social - Cláusula 15ª CCT 2023) | G68: =69.98 -> 69.98 | I68: 172,2-428,09 = | J68: =J67-I66 -> -255.89
B69: Total de Benefícios mensais e diários | G69: =SUM(G66:G68) -> 257.09
A71: QUADRO RESUMO DO MÓDULO 2 - Encargos e Benefícios anuais, mensais e diários
A73: 2 | B73: Encargos e Benefícios anuais, mensais e diários | G73: Valor (R$)
A74: 2.1 | B74: 13º (décimo terceiro) Salário, Férias e Adicional de Férias | G74: =G48 -> 1386.99
A75: 2.2 | B75: GPS, FGTS e outras contribuiçoes | G75: =G61 -> 3136
A76: 2.3 | B76: Benefícios Mensais e Diários | G76: =G69 -> 257.09
A77: TOTAL | G77: =SUM(G74:G76) -> 4780.08
A79: MÓDULO 3 - PROVISÃO PARA RESCISÃO
I80: GPS
A81: 3 | B81: Provisão para Rescisão | G81: Valor (R$)
A82: A | B82: Aviso prévio indenizado | G82: =J82 -> 323.71 | H82: =G39+G77-I82 -> 9460.57 | I82: =(G39+G48)*0.288 -> 2454.26 | J82: =H82/12*0.4106 -> 323.71
A83: B | B83: Multa do FGTS e contribuição social sobre o Aviso Prévio Indenizado | G83: =I83 -> 139.96 | H83: =G59 -> 681.74 | I83: =(H83*0.4+H83*0.1)*0.4106 -> 139.96 | J83: =H83*0.5*0.4106 -> 139.96
A84: C | B84: Aviso Prévio Trabalhado | G84: 407.69 | H84: =G39+G77 -> 11914.83 | I84: =H84/12*0.4106 -> 407.69
A85: D | B85: Multa do FGTS e contribuição social sobre o Aviso Prévio Trabalhado | G85: 139.96 | H85: =G59 -> 681.74 | I85: =(H85*0.4+H85*0.1)*0.4106 -> 139.96 | J85: =H85*0.5*0.4106 -> 139.96
A86: E | B86: Demissão com Justa Causa | G86: =K86 -> -17.34 | H86: =G46 -> 594.32 | I86: =G47 -> 792.67 | J86: =H86+I86 -> 1386.99 | K86: =-J86*0.0125 -> -17.34
A87: TOTAL | G87: =SUM(G82:G86) -> 993.98
A89: MÓDULO 4 - CUSTO DE REPOSIÇÃO DO PROFISSIONAL AUSENTE
A91: Submódulo 4.1 - Ausências Legais
A92: 4.1 | B92: Ausências legais | F92: Dias/Ano | G92: Valor (R$)
A93: A | B93: Férias | F93: ='Ass. Adm. I'!F93 -> 20.9589 | G93: =$I$93*F93/12+0.01 -> 751.54 | H93: =G39+G77+G87 -> 12908.81 | I93: =H93/30 -> 430.29 | J93: =I93*F105 -> 12682.28 | K93: =J93/12 -> 1056.86
A94: B | B94: Ausência justificada | F94: ='Ass. Adm. I'!F94 -> 1 | G94: =$I$93*F94/12 -> 35.86
A95: C | B95: Acidente de trabalho | F95: ='Ass. Adm. I'!F95 -> 0.9659 | G95: 34.63
A96: D | B96: Afastamento por doença | F96: ='Ass. Adm. I'!F96 -> 3.4932 | G96: =$I$93*F96/12 -> 125.26
A97: E | B97: Consulta médica filho | F97: ='Ass. Adm. I'!F97 -> 0.2688 | G97: 9.64
A98: F | B98: Óbitos na família | F98: ='Ass. Adm. I'!F98 -> 0.0427 | G98: 1.53
A99: G | B99: Casamento | F99: ='Ass. Adm. I'!F99 -> 0.0355 | G99: 1.27
A100: H | B100: Doação de Sangue | F100: ='Ass. Adm. I'!F100 -> 0.02 | G100: 0.72
A101: I | B101: Testemunho | F101: ='Ass. Adm. I'!F101 -> 0.004 | G101: 0.14
A102: J | B102: Paternidade | F102: ='Ass. Adm. I'!F102 -> 0.1997 | G102: 7.16
A103: K | B103: Maternidade | F103: ='Ass. Adm. I'!F103 -> 2.4753 | G103: 88.76
A104: L | B104: Consulta pré-natal | F104: ='Ass. Adm. I'!F104 -> 0.0098 | G104: 0.35
A105: TOTAL | F105: ='Ass. Adm. I'!F105 -> 29.4738 | G105: =SUM(G93:G104) -> 1056.86
A108: QUADRO RESUMO DO MÓDULO 4 - Custo de Reposição do Profissional Ausente
A110: 4 | B110: Custo de Reposição do Profissional Ausente | G110: Valor (R$)
A111: 4.1 | B111: Ausências legais | G111: =G105 -> 1056.86
A112: TOTAL | G112: =G111 -> 1056.86
A114: MÓDULO 5 - INSUMOS DIVERSOS
A116: 5 | B116: Insumos Diversos | G116: Valor (R$)
A117: A | B117: Uniformes
B118: Total | G118: =SUM(G117) -> 0
A120: MÓDULO 6 - CUSTOS INDIRETOS, TRIBUTOS E LUCRO
A122: 6 | B122: Custos Indiretos, Tributos e Lucro | F122: % | G122: Valor (R$)
A123: A | B123: Custos Indiretos | F123: ='Ass. Adm. I'!F123 -> 0.025 | G123: =G139*F123 -> 349.14
A124: B | B124: Lucro | F124: ='Ass. Adm. I'!F124 -> 0.05 | G124: =(G139+G123)*F124 -> 715.74
A125: C | B125: Tributos
A126: c.1 | B126: COFINS | F126: ='Ass. Adm. I'!F126 -> 0.076 | G126: =E146 -> 1332.15
A127: c.2 | B127: PIS | F127: ='Ass. Adm. I'!F127 -> 0.0165 | G127: =E147 -> 289.22
A128: c.3 | B128: ISSQN | F128: ='Ass. Adm. I'!F128 -> 0.05 | G128: =E148 -> 876.42
B129: Total | F129: ='Ass. Adm. I'!F129 -> 0.2175 | G129: =SUM(G123:G128) -> 3562.67
A131: 2. QUADRO - RESUMO DO CUSTO POR EMPREGADO
B133: Mão de obra vinculada à execução contratual (valor por empregado) | G133: Valor (R$)
A134: A | B134: Módulo 1 - Composição da Remuneração | G134: =G39 -> 7134.75
A135: B | B135: Módulo 2 - Encargos e Benefícios Anuais, Mensais e Diários | G135: =G77 -> 4780.08
A136: C | B136: Módulo 3 - Provisão para recisão | G136: =G87 -> 993.98
A137: D | B137: Módulo 4 - Custo de Reposição do Profissional Ausente | G137: =G112 -> 1056.86
A138: E | B138: Módulo 5 - Insumos diversos | G138: =G118 -> 0
A139: Subtotal ( A + B +C + D + E) | G139: =SUM(G134:G138) -> 13965.67
A140: E | B140: Módulo 6 - Custos indiretos, Tributos e lucro | G140: =G129 -> 3562.67
A141: Valor total por empregado | G141: =G139+G140 -> 17528.34
A143: P0 = (MÓD 1+MÓD 2+MÓD 3+MÓD 4+MÓD 5) + (CI) + (L) | E143: =G39+G77+G87+G112+G118+G123+G124 -> 15030.55
A144: P1 = P0/(1 - (pis+confins+iss)) | E144: =E143/(1-(F126+F127+F128)) -> 17528.34
A145: T = P1 - P0 | E145: =E144-E143 -> 2497.79
A146: COFINS = ((cofins)/(pis+cofins+iss) x T | E146: =((F126)/(F126+F127+F128))*E145 -> 1332.15
A147: PIS = ((pis)/(pis+cofins+iss) x T | E147: =((F127)/(F126+F127+F128))*E145 -> 289.22
A148: ISS = (iss/(pis+cofins+iss)) x T | E148: =((F128/(F126+F127+F128))*E145) -> 876.42

Sheet Ass. Com
A6: PLANILHA DE CUSTOS E FORMAÇÃO DE PREÇOS
B8: ='Aux. Adm.'!B8 -> Nº Processo | E8: ='Aux. Adm.'!E8 -> 59530.001128/2023-40
B9: ='Aux. Adm.'!B9 -> Licitação nº
A10: DISCRIMINAÇÃO DOS SERVIÇOS (dados referentes à contratação)
A12: A | B12: Ano do Acordo, Convenção ou Dissídio Coletivo | F12: ='Aux. Adm.'!F12 -> 2023 - PE000108/2023
A13: B | B13: Município/UF | F13: ='Aux. Adm.'!F13 -> Recife/PE
A14: C | B14: Data de Registro no MTE | F14: ='Aux. Adm.'!F14 -> 15/02/2023
A15: D | B15: Nº de meses de execução contratual | F15: ='Aux. Adm.'!F15 -> 12 (doze) meses
A17: IDENTIFICAÇÃO DO SERVIÇO
A19: Tipo de Serviço | C19: Unidade de Medida | E19: Quantidade total a contratar (em função da unidade de medida)
A20: Assistente de Comunicação | C20: Posto de serviço | E20: 1
A22: 1. MÓDULOS
A24: MÃO DE OBRA
A25: Mão de obra vinculada à execução contratual
A27: Dados para composição dos custos referente à mão de obra
A28: 1 | B28: Tipo de serviço | G28: Assistente de Comunicação
A29: 2 | B29: Classificação Brasileira de Ocupações (CBO) | G29: 2611
A30: 3 | B30: Salário Normativo da Categoria Profissional | G30: 3754.25
A31: 4 | B31: Categoria profissional (vinculada à execução contratual) | G31: Profissional Nivel II
A32: 5 | B32: Data-Base da categoria (dia/mês/ano) | G32: 01° de janeiro
A35: MÓDULO 1: COMPOSIÇÃO DA REMUNERAÇÃO
A37: 1 | B37: Composição da Remuneração | G37: Valor (R$)
A38: A | B38: Salário Base | G38: =G30 -> 3754.25
B39: Total | G39: =G38 -> 3754.25
A41: MÓDULO 2: ENCARGOS E BENEFÍCIOS ANUAIS, MENSAIS E DIÁRIOS
A43: Submódulo 2.1 - 13º (décimo terceiro) Salário, Férias e Adicional de Férias
A45: 2.1 | B45: 13º (décimo terceiro) Salário, Férias e Adicional de Férias | F45: % | G45: Valor (R$)
A46: A | B46: 13º (décimo terceiro) Salário | F46: ='Ass. Adm. I'!F46 -> 0.0833 | G46: =G39*F46 -> 312.73
A47: B | B47: Férias e Adicional de Férias | F47: ='Ass. Adm. I'!F47 -> 0.1111 | G47: =G39*F47 -> 417.1
A48: TOTAL | F48: ='Ass. Adm. I'!F48 -> 0.1944 | G48: =SUM(G46:G47) -> 729.83
A50: Submódulo 2.2 - Encargos previdenciários (GPS), Fundo de Garantia por tempo de Serviço (FGTS) e outras contribuições:
A52: 2.2 | B52: GPS, FGTS e outras contribuiçoes | F52: % | G52: Valor (R$)
A53: A | B53: INSS | F53: ='Ass. Adm. I'!F53 -> 0.2 | G53: =($G$39+$G$48)*F53 -> 896.82
A54: B | B54: Salário Educação | F54: ='Ass. Adm. I'!F54 -> 0.025 | G54: =($G$39+$G$48)*F54 -> 112.1
A55: C | B55: Seguro Acidente do Trabalho/SAT/INSS | F55: ='Ass. Adm. I'!F55 -> 0.03 | G55: 134.52
A56: D | B56: SESI/SESC | F56: ='Ass. Adm. I'!F56 -> 0.015 | G56: 67.26
A57: E | B57: SENAI/SENAC | F57: ='Ass. Adm. I'!F57 -> 0.01 | G57: 44.84
A58: F | B58: INCRA | F58: ='Ass. Adm. I'!F58 -> 0.002 | G58: 8.97
A59: G | B59: FGTS | F59: ='Ass. Adm. I'!F59 -> 0.08 | G59: 358.73
A60: H | B60: SEBRAE | F60: ='Ass. Adm. I'!F60 -> 0.006 | G60: 26.9
A61: TOTAL | F61: ='Ass. Adm. I'!F61 -> 0.368 | G61: =SUM(G53:G60) -> 1650.14
A63: Submódulo 2.3 - Benefícios Mensais e Diários
A65: 2.3 | B65: Benefícios Mensais e Diários | G65: Valor (R$) | I65: =6%*G38 -> 225.26 | J65: = 6% do salario base
A66: A | B66: Transporte | G66: =IF((4.1*2*21)-(6%*G38)>0,(4.1*2*21)-(6%*G38),0) -> 0 | I66: 4,1*2*21 = | J66: =4.1*2*21 -> 172.2
A67: B | B67: Auxílio alimentação (Cláusula 11ª CCT 2023) | G67: =(8.91*21) -> 187.11 | I67: 172,2-225,26 = | J67: =J66-I65 -> -53.06
A68: C | B68: Outros (Cobertura Social - Cláusula 15ª CCT 2023) | G68: =69.98 -> 69.98
B69: Total de Benefícios mensais e diários | G69: =SUM(G66:G68) -> 257.09
A71: QUADRO RESUMO DO MÓDULO 2 - Encargos e Benefícios anuais, mensais e diários
A73: 2 | B73: Encargos e Benefícios anuais, mensais e diários | G73: Valor (R$)
A74: 2.1 | B74: 13º (décimo terceiro) Salário, Férias e Adicional de Férias | G74: =G48 -> 729.83
A75: 2.2 | B75: GPS, FGTS e outras contribuiçoes | G75: =G61 -> 1650.14
A76: 2.3 | B76: Benefícios Mensais e Diários | G76: =G69 -> 257.09
A77: TOTAL | G77: =SUM(G74:G76) -> 2637.06
A79: MÓDULO 3 - PROVISÃO PARA RESCISÃO
I80: GPS
A81: 3 | B81: Provisão para Rescisão | G81: Valor (R$)
A82: A | B82: Aviso prévio indenizado | G82: =J82 -> 174.5 | H82: =G39+G77-I82 -> 5099.89 | I82: =(G39+G48)*0.288 -> 1291.42 | J82: =H82/12*0.4106 -> 174.5
A83: B | B83: Multa do FGTS e contribuição social sobre o Aviso Prévio Indenizado | G83: =I83 -> 73.65 | H83: =G59 -> 358.73 | I83: =(H83*0.4+H83*0.1)*0.4106 -> 73.65 | J83: =H83*0.5*0.4106 -> 73.65
A84: C | B84: Aviso Prévio Trabalhado | G84: 218.69 | H84: =G39+G77 -> 6391.31 | I84: =H84/12*0.4106 -> 218.69
A85: D | B85: Multa do FGTS e contribuição social sobre o Aviso Prévio Trabalhado | G85: 73.65 | H85: =G59 -> 358.73 | I85: =(H85*0.4+H85*0.1)*0.4106 -> 73.65 | J85: =H85*0.5*0.4106 -> 73.65
A86: E | B86: Demissão com Justa Causa | G86: =K86 -> -9.12 | H86: =G46 -> 312.73 | I86: =G47 -> 417.1 | J86: =H86+I86 -> 729.83 | K86: =-J86*0.0125 -> -9.12
A87: TOTAL | G87: =SUM(G82:G86) -> 531.37
A89: MÓDULO 4 - CUSTO DE REPOSIÇÃO DO PROFISSIONAL AUSENTE
A91: Submódulo 4.1 - Ausências Legais
A92: 4.1 | B92: Ausências legais | F92: Dias/Ano | G92: Valor (R$)
A93: A | B93: Férias | F93: ='Ass. Adm. I'!F93 -> 20.9589 | G93: =$I$93*F93/12+0.01 -> 403.05 | H93: =G39+G77+G87 -> 6922.68 | I93: =H93/30 -> 230.76 | J93: =I93*F105 -> 6801.37 | K93: =J93/12 -> 566.78
A94: B | B94: Ausência justificada | F94: ='Ass. Adm. I'!F94 -> 1 | G94: =$I$93*F94/12 -> 19.23
A95: C | B95: Acidente de trabalho | F95: ='Ass. Adm. I'!F95 -> 0.9659 | G95: 18.57
A96: D | B96: Afastamento por doença | F96: ='Ass. Adm. I'!F96 -> 3.4932 | G96: =$I$93*F96/12+0.01 -> 67.18
A97: E | B97: Consulta médica filho | F97: ='Ass. Adm. I'!F97 -> 0.2688 | G97: 5.17
A98: F | B98: Óbitos na família | F98: ='Ass. Adm. I'!F98 -> 0.0427 | G98: 0.82
A99: G | B99: Casamento | F99: ='Ass. Adm. I'!F99 -> 0.0355 | G99: 0.68
A100: H | B100: Doação de Sangue | F100: ='Ass. Adm. I'!F100 -> 0.02 | G100: 0.38
A101: I | B101: Testemunho | F101: ='Ass. Adm. I'!F101 -> 0.004 | G101: 0.08
A102: J | B102: Paternidade | F102: ='Ass. Adm. I'!F102 -> 0.1997 | G102: 3.84
A103: K | B103: Maternidade | F103: ='Ass. Adm. I'!F103 -> 2.4753 | G103: 47.6
A104: L | B104: Consulta pré-natal | F104: ='Ass. Adm. I'!F104 -> 0.0098 | G104: 0.19
A105: TOTAL | F105: ='Ass. Adm. I'!F105 -> 29.4738 | G105: =SUM(G93:G104) -> 566.79
A108: QUADRO RESUMO DO MÓDULO 4 - Custo de Reposição do Profissional Ausente
A110: 4 | B110: Custo de Reposição do Profissional Ausente | G110: Valor (R$)
A111: 4.1 | B111: Ausências legais | G111: =G105 -> 566.79
A112: TOTAL | G112: =G111 -> 566.79
A114: MÓDULO 5 - INSUMOS DIVERSOS
A116: 5 | B116: Insumos Diversos | G116: Valor (R$)
A117: A | B117: Uniformes | G117: 0
B118: Total | G118: =SUM(G117) -> 0
A120: MÓDULO 6 - CUSTOS INDIRETOS, TRIBUTOS E LUCRO
A122: 6 | B122: Custos Indiretos, Tributos e Lucro | F122: % | G122: Valor (R$)
A123: A | B123: Custos Indiretos | F123: ='Ass. Adm. I'!F123 -> 0.025 | G123: =G139*F123 -> 187.24
A124: B | B124: Lucro | F124: ='Ass. Adm. I'!F124 -> 0.05 | G124: =(G139+G123)*F124 -> 383.84
A125: C | B125: Tributos
A126: c.1 | B126: COFINS | F126: ='Ass. Adm. I'!F126 -> 0.076 | G126: =E146 -> 714.41
A127: c.2 | B127: PIS | F127: ='Ass. Adm. I'!F127 -> 0.0165 | G127: =E147 -> 155.1
A128: c.3 | B128: ISSQN | F128: ='Ass. Adm. I'!F128 -> 0.05 | G128: =E148 -> 470
B129: Total | F129: ='Ass. Adm. I'!F129 -> 0.2175 | G129: =SUM(G123:G128) -> 1910.59
A131: 2. QUADRO - RESUMO DO CUSTO POR EMPREGADO
B133: Mão de obra vinculada à execução contratual (valor por empregado) | G133: Valor (R$)
A134: A | B134: Módulo 1 - Composição da Remuneração | G134: =G39 -> 3754.25
A135: B | B135: Módulo 2 - Encargos e Benefícios Anuais, Mensais e Diários | G135: =G77 -> 2637.06
A136: C | B136: Módulo 3 - Provisão para recisão | G136: =G87 -> 531.37
A137: D | B137: Módulo 4 - Custo de Reposição do Profissional Ausente | G137: =G112 -> 566.79
A138: E | B138: Módulo 5 - Insumos diversos | G138: =G118 -> 0
A139: Subtotal ( A + B +C + D + E) | G139: =SUM(G134:G138) -> 7489.47
A140: E | B140: Módulo 6 - Custos indiretos, Tributos e lucro | G140: =G129 -> 1910.59
A141: Valor total por empregado | G141: =G139+G140 -> 9400.06
A143: P0 = (MÓD 1+MÓD 2+MÓD 3+MÓD 4+MÓD 5) + (CI) + (L) | E143: =G39+G77+G87+G112+G118+G123+G124 -> 8060.55
A144: P1 = P0/(1 - (pis+confins+iss)) | E144: =E143/(1-(F126+F127+F128)) -> 9400.06
A145: T = P1 - P0 | E145: =E144-E143 -> 1339.51
A146: COFINS = ((cofins)/(pis+cofins+iss) x T | E146: =((F126)/(F126+F127+F128))*E145 -> 714.41
A147: PIS = ((pis)/(pis+cofins+iss) x T | E147: =((F127)/(F126+F127+F128))*E145 -> 155.1
A148: ISS = (iss/(pis+cofins+iss)) x T | E148: =((F128/(F126+F127+F128))*E145) -> 470

Sheet Assist. Condução
A6: PLANILHA DE CUSTOS E FORMAÇÃO DE PREÇOS
B8: ='Aux. Adm.'!B8 -> Nº Processo | E8: ='Aux. Adm.'!E8 -> 59530.001128/2023-40
B9: ='Aux. Adm.'!B9 -> Licitação nº
A10: DISCRIMINAÇÃO DOS SERVIÇOS (dados referentes à contratação)
A12: A | B12: Ano do Acordo, Convenção ou Dissídio Coletivo | F12: ='Aux. Adm.'!F12 -> 2023 - PE000108/2023
A13: B | B13: Município/UF | F13: ='Aux. Adm.'!F13 -> Recife/PE
A14: C | B14: Data de Registro no MTE | F14: ='Aux. Adm.'!F14 -> 15/02/2023
A15: D | B15: Nº de meses de execução contratual | F15: ='Aux. Adm.'!F15 -> 12 (doze) meses
A17: IDENTIFICAÇÃO DO SERVIÇO
A19: Tipo de Serviço | C19: Unidade de Medida | E19: Quantidade total a contratar (em função da unidade de medida)
A20: Assistente de Condução | C20: Posto de serviço | E20: 1
A22: 1. MÓDULOS
A24: MÃO DE OBRA
A25: Mão de obra vinculada à execução contratual
A27: Dados para composição dos custos referente à mão de obra
A28: 1 | B28: Tipo de serviço | G28: Assistente de Condução (A3)
A29: 2 | B29: Classificação Brasileira de Ocupações (CBO) | G29: 3421-25
A30: 3 | B30: Salário Normativo da Categoria Profissional | G30: 2658.79
A31: 4 | B31: Categoria profissional (vinculada à execução contratual) | G31: Apoio Administrativo
A32: 5 | B32: Data-Base da categoria (dia/mês/ano) | G32: 01° de janeiro
A35: MÓDULO 1: COMPOSIÇÃO DA REMUNERAÇÃO
A37: 1 | B37: Composição da Remuneração | G37: Valor (R$)
A38: A | B38: Salário Base | G38: =G30 -> 2658.79
B39: Total | G39: =G38 -> 2658.79
A41: MÓDULO 2: ENCARGOS E BENEFÍCIOS ANUAIS, MENSAIS E DIÁRIOS
A43: Submódulo 2.1 - 13º (décimo terceiro) Salário, Férias e Adicional de Férias
A45: 2.1 | B45: 13º (décimo terceiro) Salário, Férias e Adicional de Férias | F45: % | G45: Valor (R$)
A46: A | B46: 13º (décimo terceiro) Salário | F46: ='Ass. Adm. I'!F46 -> 0.0833 | G46: =G39*F46 -> 221.48
A47: B | B47: Férias e Adicional de Férias | F47: ='Ass. Adm. I'!F47 -> 0.1111 | G47: =G39*F47 -> 295.39
A48: TOTAL | F48: ='Ass. Adm. I'!F48 -> 0.1944 | G48: =SUM(G46:G47) -> 516.87
A50: Submódulo 2.2 - Encargos previdenciários (GPS), Fundo de Garantia por tempo de Serviço (FGTS) e outras contribuições:
A52: 2.2 | B52: GPS, FGTS e outras contribuiçoes | F52: % | G52: Valor (R$)
A53: A | B53: INSS | F53: ='Ass. Adm. I'!F53 -> 0.2 | G53: =($G$39+$G$48)*F53 -> 635.13
A54: B | B54: Salário Educação | F54: ='Ass. Adm. I'!F54 -> 0.025 | G54: =($G$39+$G$48)*F54 -> 79.39
A55: C | B55: Seguro Acidente do Trabalho/SAT/INSS | F55: ='Ass. Adm. I'!F55 -> 0.03 | G55: 95.27
A56: D | B56: SESI/SESC | F56: ='Ass. Adm. I'!F56 -> 0.015 | G56: 47.63
A57: E | B57: SENAI/SENAC | F57: ='Ass. Adm. I'!F57 -> 0.01 | G57: 31.76
A58: F | B58: INCRA | F58: ='Ass. Adm. I'!F58 -> 0.002 | G58: 6.35
A59: G | B59: FGTS | F59: ='Ass. Adm. I'!F59 -> 0.08 | G59: 254.05
A60: H | B60: SEBRAE | F60: ='Ass. Adm. I'!F60 -> 0.006 | G60: 19.05
A61: TOTAL | F61: ='Ass. Adm. I'!F61 -> 0.368 | G61: =SUM(G53:G60) -> 1168.63
A63: Submódulo 2.3 - Benefícios Mensais e Diários
A65: 2.3 | B65: Benefícios Mensais e Diários | G65: Valor (R$)
A66: A | B66: Transporte | G66: =IF((4.1*2*21)-(6%*G38)>0,(4.1*2*21)-(6%*G38),0) -> 12.67 | I66: =6%*G38 -> 159.53 | J66: = 6% do salario base
A67: B | B67: Auxílio alimentação (Cláusula 11ª CCT 2023) | G67: =(8.91*21) -> 187.11 | I67: 4,1*2*21 = | J67: =4.1*2*21 -> 172.2
A68: C | B68: Outros (Cobertura Social - Cláusula 15ª CCT 2023) | G68: =69.98 -> 69.98 | I68: 172,2-159,53 = | J68: =J67-I66 -> 12.67
B69: Total de Benefícios mensais e diários | G69: =SUM(G66:G68) -> 269.76
A71: QUADRO RESUMO DO MÓDULO 2 - Encargos e Benefícios anuais, mensais e diários
A73: 2 | B73: Encargos e Benefícios anuais, mensais e diários | G73: Valor (R$)
A74: 2.1 | B74: 13º (décimo terceiro) Salário, Férias e Adicional de Férias | G74: =G48 -> 516.87
A75: 2.2 | B75: GPS, FGTS e outras contribuiçoes | G75: =G61 -> 1168.63
A76: 2.3 | B76: Benefícios Mensais e Diários | G76: =G69 -> 269.76
A77: TOTAL | G77: =SUM(G74:G76) -> 1955.26
A79: MÓDULO 3 - PROVISÃO PARA RESCISÃO
I80: GPS
A81: 3 | B81: Provisão para Rescisão | G81: Valor (R$)
A82: A | B82: Aviso prévio indenizado | G82: =J82 -> 126.58 | H82: =G39+G77-I82 -> 3699.46 | I82: =(G39+G48)*0.288 -> 914.59 | J82: =H82/12*0.4106 -> 126.58
A83: B | B83: Multa do FGTS e contribuição social sobre o Aviso Prévio Indenizado | G83: =I83 -> 52.16 | H83: =G59 -> 254.05 | I83: =(H83*0.4+H83*0.1)*0.4106 -> 52.16 | J83: =H83*0.5*0.4106 -> 52.16
A84: C | B84: Aviso Prévio Trabalhado | G84: 157.88 | H84: =G39+G77 -> 4614.05 | I84: =H84/12*0.4106 -> 157.88
A85: D | B85: Multa do FGTS e contribuição social sobre o Aviso Prévio Trabalhado | G85: 52.16 | H85: =G59 -> 254.05 | I85: =(H85*0.4+H85*0.1)*0.4106 -> 52.16 | J85: =H85*0.5*0.4106 -> 52.16
A86: E | B86: Demissão com Justa Causa | G86: =K86 -> -6.46 | H86: =G46 -> 221.48 | I86: =G47 -> 295.39 | J86: =H86+I86 -> 516.87 | K86: =-J86*0.0125 -> -6.46
A87: TOTAL | G87: =SUM(G82:G86) -> 382.32
A89: MÓDULO 4 - CUSTO DE REPOSIÇÃO DO PROFISSIONAL AUSENTE
A91: Submódulo 4.1 - Ausências Legais
A92: 4.1 | B92: Ausências legais | F92: Dias/Ano | G92: Valor (R$)
A93: A | B93: Férias | F93: ='Ass. Adm. I'!F93 -> 20.9589 | G93: =$I$93*F93/12-0.01 -> 290.88 | H93: =G39+G77+G87 -> 4996.37 | I93: =H93/30 -> 166.55 | J93: =I93*F105 -> 4908.86 | K93: =J93/12 -> 409.07
A94: B | B94: Ausência justificada | F94: ='Ass. Adm. I'!F94 -> 1 | G94: =$I$93*F94/12 -> 13.88
A95: C | B95: Acidente de trabalho | F95: ='Ass. Adm. I'!F95 -> 0.9659 | G95: 13.41
A96: D | B96: Afastamento por doença | F96: ='Ass. Adm. I'!F96 -> 3.4932 | G96: =$I$93*F96/12 -> 48.48
A97: E | B97: Consulta médica filho | F97: ='Ass. Adm. I'!F97 -> 0.2688 | G97: 3.73
A98: F | B98: Óbitos na família | F98: ='Ass. Adm. I'!F98 -> 0.0427 | G98: 0.59
A99: G | B99: Casamento | F99: ='Ass. Adm. I'!F99 -> 0.0355 | G99: 0.49
A100: H | B100: Doação de Sangue | F100: ='Ass. Adm. I'!F100 -> 0.02 | G100: 0.28
A101: I | B101: Testemunho | F101: ='Ass. Adm. I'!F101 -> 0.004 | G101: 0.06
A102: J | B102: Paternidade | F102: ='Ass. Adm. I'!F102 -> 0.1997 | G102: 2.77
A103: K | B103: Maternidade | F103: ='Ass. Adm. I'!F103 -> 2.4753 | G103: 34.36
A104: L | B104: Consulta pré-natal | F104: ='Ass. Adm. I'!F104 -> 0.0098 | G104: 0.14
A105: TOTAL | F105: ='Ass. Adm. I'!F105 -> 29.4738 | G105: =SUM(G93:G104) -> 409.07
A108: QUADRO RESUMO DO MÓDULO 4 - Custo de Reposição do Profissional Ausente
A110: 4 | B110: Custo de Reposição do Profissional Ausente | G110: Valor (R$)
A111: 4.1 | B111: Ausências legais | G111: =G105 -> 409.07
A112: TOTAL | G112: =G111 -> 409.07
A114: MÓDULO 5 - INSUMOS DIVERSOS
A116: 5 | B116: Insumos Diversos | G116: Valor (R$)
A117: A | B117: Uniformes | G117: 30
B118: Total | G118: =SUM(G117) -> 30
A120: MÓDULO 6 - CUSTOS INDIRETOS, TRIBUTOS E LUCRO
A122: 6 | B122: Custos Indiretos, Tributos e Lucro | F122: % | G122: Valor (R$)
A123: A | B123: Custos Indiretos | F123: ='Ass. Adm. I'!F123 -> 0.025 | G123: =G139*F123 -> 135.89
A124: B | B124: Lucro | F124: ='Ass. Adm. I'!F124 -> 0.05 | G124: =(G139+G123)*F124 -> 278.57
A125: C | B125: Tributos
A126: c.1 | B126: COFINS | F126: ='Ass. Adm. I'!F126 -> 0.076 | G126: =E146 -> 518.47
A127: c.2 | B127: PIS | F127: ='Ass. Adm. I'!F127 -> 0.0165 | G127: =E147 -> 112.56
A128: c.3 | B128: ISSQN | F128: ='Ass. Adm. I'!F128 -> 0.05 | G128: =E148 -> 341.11
B129: Total | F129: ='Ass. Adm. I'!F129 -> 0.2175 | G129: =SUM(G123:G128) -> 1386.6
A131: 2. QUADRO - RESUMO DO CUSTO POR EMPREGADO
B133: Mão de obra vinculada à execução contratual (valor por empregado) | G133: Valor (R$)
A134: A | B134: Módulo 1 - Composição da Remuneração | G134: =G39 -> 2658.79
A135: B | B135: Módulo 2 - Encargos e Benefícios Anuais, Mensais e Diários | G135: =G77 -> 1955.26
A136: C | B136: Módulo 3 - Provisão para recisão | G136: =G87 -> 382.32
A137: D | B137: Módulo 4 - Custo de Reposição do Profissional Ausente | G137: =G112 -> 409.07
A138: E | B138: Módulo 5 - Insumos diversos | G138: =G118 -> 30
A139: Subtotal ( A + B +C + D + E) | G139: =SUM(G134:G138) -> 5435.44
A140: E | B140: Módulo 6 - Custos indiretos, Tributos e lucro | G140: =G129 -> 1386.6
A141: Valor total por empregado | G141: =G139+G140 -> 6822.04
A143: P0 = (MÓD 1+MÓD 2+MÓD 3+MÓD 4+MÓD 5) + (CI) + (L) | E143: =G39+G77+G87+G112+G118+G123+G124 -> 5849.9
A144: P1 = P0/(1 - (pis+confins+iss)) | E144: =E143/(1-(F126+F127+F128)) -> 6822.04
A145: T = P1 - P0 | E145: =E144-E143 -> 972.14
A146: COFINS = ((cofins)/(pis+cofins+iss) x T | E146: =((F126)/(F126+F127+F128))*E145 -> 518.47
A147: PIS = ((pis)/(pis+cofins+iss) x T | E147: =((F127)/(F126+F127+F128))*E145 -> 112.56
A148: ISS = (iss/(pis+cofins+iss)) x T | E148: =((F128/(F126+F127+F128))*E145)+0.01 -> 341.11

Sheet Assist. Condução - Hora Extra
A6: PLANILHA DE CUSTOS E FORMAÇÃO DE PREÇOS
B8: ='Aux. Adm.'!B8 -> Nº Processo | E8: ='Aux. Adm.'!E8 -> 59530.001128/2023-40
B9: ='Aux. Adm.'!B9 -> Licitação nº
A10: DISCRIMINAÇÃO DOS SERVIÇOS (dados referentes à contratação)
A12: A | B12: Ano do Acordo, Convenção ou Dissídio Coletivo | F12: ='Aux. Adm.'!F12 -> 2023 - PE000108/2023
A13: B | B13: Município/UF | F13: ='Aux. Adm.'!F13 -> Recife/PE
A14: C | B14: Data de Registro no MTE | F14: ='Aux. Adm.'!F14 -> 15/02/2023
A15: D | B15: Nº de meses de execução contratual | F15: ='Aux. Adm.'!F15 -> 12 (doze) meses
A17: IDENTIFICAÇÃO DO SERVIÇO
A19: Tipo de Serviço | C19: Unidade de Medida | E19: Quantidade total a contratar (em função da unidade de medida)
A20: Assistente de Condução - Horas Extras | C20: Hora | E20: 1
A22: 1. MÓDULOS
A24: MÃO DE OBRA
A25: Mão de obra vinculada à execução contratual
A27: Dados para composição dos custos referente à mão de obra
A28: 1 | B28: Tipo de serviço | G28: Assistente de Condução (A3) - Horas Extras
A29: 2 | B29: Classificação Brasileira de Ocupações (CBO) | G29: 3421-25
A30: 3 | B30: Hora extra a 50% | G30: =(H30/220)*1.5 -> 18.13 | H30: 2658.79
A31: 4 | B31: Categoria profissional (vinculada à execução contratual) | G31: Apoio Administrativo
A32: 5 | B32: Data-Base da categoria (dia/mês/ano) | G32: 01° de janeiro
A35: MÓDULO 1: COMPOSIÇÃO DA REMUNERAÇÃO
A37: 1 | B37: Composição da Remuneração | G37: Valor (R$)
A38: A | B38: Hora extra a 50% - Assistente de Condução | G38: =G30 -> 18.13
B39: Total | G39: =G38 -> 18.13
A41: MÓDULO 2: ENCARGOS E BENEFÍCIOS ANUAIS, MENSAIS E DIÁRIOS
A43: Submódulo 2.1 - 13º (décimo terceiro) Salário, Férias e Adicional de Férias
A45: 2.1 | B45: 13º (décimo terceiro) Salário, Férias e Adicional de Férias | F45: % | G45: Valor (R$)
A46: A | B46: 13º (décimo terceiro) Salário | F46: ='Ass. Adm. I'!F46 -> 0.0833 | G46: =G39*F46 -> 1.51
A47: B | B47: Férias e Adicional de Férias | F47: ='Ass. Adm. I'!F47 -> 0.1111 | G47: =G39*F47 -> 2.01
A48: TOTAL | F48: ='Ass. Adm. I'!F48 -> 0.1944 | G48: =SUM(G46:G47) -> 3.52
A50: Submódulo 2.2 - Encargos previdenciários (GPS), Fundo de Garantia por tempo de Serviço (FGTS) e outras contribuições:
A52: 2.2 | B52: GPS, FGTS e outras contribuiçoes | F52: % | G52: Valor (R$)
A53: A | B53: INSS | F53: ='Ass. Adm. I'!F53 -> 0.2 | G53: =($G$39+$G$48)*F53 -> 4.33
A54: B | B54: Salário Educação | F54: ='Ass. Adm. I'!F54 -> 0.025 | G54: 0.54
A55: C | B55: Seguro Acidente do Trabalho/SAT/INSS | F55: ='Ass. Adm. I'!F55 -> 0.03 | G55: 0.65
A56: D | B56: SESI/SESC | F56: ='Ass. Adm. I'!F56 -> 0.015 | G56: 0.32
A57: E | B57: SENAI/SENAC | F57: ='Ass. Adm. I'!F57 -> 0.01 | G57: 0.22
A58: F | B58: INCRA | F58: ='Ass. Adm. I'!F58 -> 0.002 | G58: 0.04
A59: G | B59: FGTS | F59: ='Ass. Adm. I'!F59 -> 0.08 | G59: 1.73
A60: H | B60: SEBRAE | F60: ='Ass. Adm. I'!F60 -> 0.006 | G60: 0.13
A61: TOTAL | F61: ='Ass. Adm. I'!F61 -> 0.368 | G61: =SUM(G53:G60) -> 7.96
A63: Submódulo 2.3 - Benefícios Mensais e Diários
A65: 2.3 | B65: Benefícios Mensais e Diários | G65: Valor (R$)
A66: A | B66: Transporte | G66: 0
A67: B | B67: Auxílio alimentação (Cláusula 11ª CCT 2023) | G67: 0
A68: C | B68: Outros (Cesta Básica - Cláusula 13ª CCT 2023 + Cobertura Social - Cláusula 15ª CCT 2023) | G68: 0
B69: Total de Benefícios mensais e diários | G69: =SUM(G66:G68) -> 0
A71: QUADRO RESUMO DO MÓDULO 2 - Encargos e Benefícios anuais, mensais e diários
A73: 2 | B73: Encargos e Benefícios anuais, mensais e diários | G73: Valor (R$)
A74: 2.1 | B74: 13º (décimo terceiro) Salário, Férias e Adicional de Férias | G74: =G48 -> 3.52
A75: 2.2 | B75: GPS, FGTS e outras contribuiçoes | G75: =G61 -> 7.96
A76: 2.3 | B76: Benefícios Mensais e Diários | G76: =G69 -> 0
A77: TOTAL | G77: =SUM(G74:G76) -> 11.48
A79: MÓDULO 3 - PROVISÃO PARA RESCISÃO
I80: GPS
A81: 3 | B81: Provisão para Rescisão | G81: Valor (R$)
A82: A | B82: Aviso prévio indenizado | G82: =J82 -> 0.8 | H82: =G39+G77-I82 -> 23.37 | I82: =(G39+G48)*0.288 -> 6.24 | J82: =H82/12*0.4106 -> 0.8
A83: B | B83: Multa do FGTS e contribuição social sobre o Aviso Prévio Indenizado | G83: =I83 -> 0.36 | H83: =G59 -> 1.73 | I83: =(H83*0.4+H83*0.1)*0.4106 -> 0.36 | J83: =H83*0.5*0.4106 -> 0.36
A84: C | B84: Aviso Prévio Trabalhado | G84: 1.01 | H84: =G39+G77 -> 29.61 | I84: =H84/12*0.4106 -> 1.01
A85: D | B85: Multa do FGTS e contribuição social sobre o Aviso Prévio Trabalhado | G85: 0.36 | H85: =G59 -> 1.73 | I85: =(H85*0.4+H85*0.1)*0.4106 -> 0.36 | J85: =H85*0.5*0.4106 -> 0.36
A86: E | B86: Demissão com Justa Causa | G86: =K86 -> -0.04 | H86: =G46 -> 1.51 | I86: =G47 -> 2.01 | J86: =H86+I86 -> 3.52 | K86: =-J86*0.0125 -> -0.04
A87: TOTAL | G87: =SUM(G82:G86) -> 2.49
A89: MÓDULO 4 - CUSTO DE REPOSIÇÃO DO PROFISSIONAL AUSENTE
A91: Submódulo 4.1 - Ausências Legais
A92: 4.1 | B92: Ausências legais | F92: Dias/Ano | G92: Valor (R$)
A93: A | B93: Férias | F93: ='Ass. Adm. I'!F93 -> 20.9589 | G93: =$I$93*F93/12+0.01 -> 1.88 | H93: =G39+G77+G87 -> 32.1 | I93: =H93/30 -> 1.07 | J93: =I93*F105 -> 31.54 | K93: =J93/12 -> 2.63
A94: B | B94: Ausência justificada | F94: ='Ass. Adm. I'!F94 -> 1 | G94: =$I$93*F94/12 -> 0.09
A95: C | B95: Acidente de trabalho | F95: ='Ass. Adm. I'!F95 -> 0.9659 | G95: 0.09
A96: D | B96: Afastamento por doença | F96: ='Ass. Adm. I'!F96 -> 3.4932 | G96: 0.31
A97: E | B97: Consulta médica filho | F97: ='Ass. Adm. I'!F97 -> 0.2688 | G97: 0.02
A98: F | B98: Óbitos na família | F98: ='Ass. Adm. I'!F98 -> 0.0427 | G98: 0
A99: G | B99: Casamento | F99: ='Ass. Adm. I'!F99 -> 0.0355 | G99: 0
A100: H | B100: Doação de Sangue | F100: ='Ass. Adm. I'!F100 -> 0.02 | G100: 0
A101: I | B101: Testemunho | F101: ='Ass. Adm. I'!F101 -> 0.004 | G101: 0
A102: J | B102: Paternidade | F102: ='Ass. Adm. I'!F102 -> 0.1997 | G102: 0.02
A103: K | B103: Maternidade | F103: ='Ass. Adm. I'!F103 -> 2.4753 | G103: 0.22
A104: L | B104: Consulta pré-natal | F104: ='Ass. Adm. I'!F104 -> 0.0098 | G104: 0
A105: TOTAL | F105: ='Ass. Adm. I'!F105 -> 29.4738 | G105: =SUM(G93:G104) -> 2.63
A108: QUADRO RESUMO DO MÓDULO 4 - Custo de Reposição do Profissional Ausente
A110: 4 | B110: Custo de Reposição do Profissional Ausente | G110: Valor (R$)
A111: 4.1 | B111: Ausências legais | G111: =G105 -> 2.63
A112: TOTAL | G112: =G111 -> 2.63
A114: MÓDULO 5 - INSUMOS DIVERSOS
A116: 5 | B116: Insumos Diversos | G116: Valor (R$)
A117: A | B117: Uniformes | G117: 0
B118: Total | G118: =SUM(G117) -> 0
A120: MÓDULO 6 - CUSTOS INDIRETOS, TRIBUTOS E LUCRO
A122: 6 | B122: Custos Indiretos, Tributos e Lucro | F122: % | G122: Valor (R$)
A123: A | B123: Custos Indiretos | F123: ='Ass. Adm. I'!F123 -> 0.025 | G123: =G139*F123 -> 0.87
A124: B | B124: Lucro | F124: ='Ass. Adm. I'!F124 -> 0.05 | G124: =(G139+G123)*F124 -> 1.78
A125: C | B125: Tributos
A126: c.1 | B126: COFINS | F126: ='Ass. Adm. I'!F126 -> 0.076 | G126: =E146 -> 3.31
A127: c.2 | B127: PIS | F127: ='Ass. Adm. I'!F127 -> 0.0165 | G127: 0.72
A128: c.3 | B128: ISSQN | F128: ='Ass. Adm. I'!F128 -> 0.05 | G128: 2.18
B129: Total | F129: ='Ass. Adm. I'!F129 -> 0.2175 | G129: =SUM(G123:G128) -> 8.86
A131: 2. QUADRO - RESUMO DO CUSTO POR EMPREGADO
B133: Mão de obra vinculada à execução contratual (valor por empregado) | G133: Valor (R$)
A134: A | B134: Módulo 1 - Composição da Remuneração | G134: =G39 -> 18.13
A135: B | B135: Módulo 2 - Encargos e Benefícios Anuais, Mensais e Diários | G135: =G77 -> 11.48
A136: C | B136: Módulo 3 - Provisão para recisão | G136: =G87 -> 2.49
A137: D | B137: Módulo 4 - Custo de Reposição do Profissional Ausente | G137: =G112 -> 2.63
A138: E | B138: Módulo 5 - Insumos diversos | G138: =G118 -> 0
A139: Subtotal ( A + B +C + D + E) | G139: =SUM(G134:G138) -> 34.73
A140: E | B140: Módulo 6 - Custos indiretos, Tributos e lucro | G140: =G129 -> 8.86
A141: Valor total por Hora Extra a 50% | G141: =G139+G140 -> 43.59
A143: P0 = (MÓD 1+MÓD 2+MÓD 3+MÓD 4+MÓD 5) + (CI) + (L) | E143: =G39+G77+G87+G112+G118+G123+G124 -> 37.38
A144: P1 = P0/(1 - (pis+confins+iss)) | E144: =E143/(1-(F126+F127+F128)) -> 43.59
A145: T = P1 - P0 | E145: =E144-E143 -> 6.21
A146: COFINS = ((cofins)/(pis+cofins+iss) x T | E146: =((F126)/(F126+F127+F128))*E145 -> 3.31
A147: PIS = ((pis)/(pis+cofins+iss) x T | E147: =((F127)/(F126+F127+F128))*E145 -> 0.72
A148: ISS = (iss/(pis+cofins+iss)) x T | E148: =((F128/(F126+F127+F128))*E145) -> 2.18

Sheet Despesas com Viagens - Diárias
A7: Despesas com Viagens
A8: ITEM | B8: DISCRIMINAÇÃO | C8: QUANT. | D8: VALOR
D9: UNITÁRIO | E9: TOTAL
A10: 1 | B10: Diária (pernoite) - 10ª CCT 2023 | C10: =10*12 -> 120 | D10: 89.71 | E10: =C10*D10 -> 10765.2
A11: 2 | B11: Diária (12hs) - 10ª CCT 2023 | C11: =5*12 -> 60 | D11: =D10*(2/3) -> 59.81 | E11: =C11*D11 -> 3588.6
A12: 3 | B12: Diária (8hs) - 10ª CCT 2023 | C12: =10*12 -> 120 | D12: =D10*(1/3) -> 29.9 | E12: =C12*D12 -> 3588
A13: 2 | B13: BDI + IMPOSTOS (21,75%) | E13: =(E10+E11+E12)*'Assist. Condução'!F129 -> 3902.34
A14: 3 | B14: TOTAL + BDI + IMPOSTOS (21,75%) | E14: =SUM(E10:E13) -> 21844.14
A15: 4 | B15: TOTAL + BDI + IMPOSTOS (21,75%) P/ MÊS | E15: =E14/12 -> 1820.35
A17: Obs.: O cálculo do quantitativo de diárias (pernoite) foi baseado na estimativa de 10 diárias por mês, durante o período de 12 meses, totalizando 120 diárias.
A18: Obs.: O cálculo do quantitativo de diárias (12hs) foi baseado na estimativa de 05 diárias por mês, durante o período de 12 meses, totalizando 60 diárias (12hs).
A19: Obs.: O cálculo do quantitativo de diárias (8 hs) foi baseado na estimativa de 10 diárias por mês, durante o período de 12 meses, totalizando 120 diárias (8hs).
